{"text_format":"1","workbook":"xlsx","n_sheets":12,"sheets":["Eingabe","Hausverwaltungen","Vorbelegung","Wert1914","Denkmalschutz","Antrag","Druck_Antrag","Druck_Wert1914","Druck_Berechnung","Druck_Beiblatt","Druck_Angebot","Berechnung"],"not_rendered":{"charts":0,"images":28,"macros":1,"external_links":1,"defined_names":13,"comments":1,"pivot_tables":0},"unopened":[],"bounds":{"document_bytes":16777216,"sheet_cells":100000,"rows_first":2000,"rows_last":500,"rows_between":2000,"halvings":0,"cell_chars":16384,"cell_head_chars":4096},"cells_cut":0,"cells_raw":0,"read":"whole","date_system":"1900"}

{"sheet":"Eingabe","index":0,"n_rows":115,"n_cols":15,"rows_kept":115,"cut":false,"hidden":false,"merged":[[24,1,24,3],[20,12,20,14],[16,10,16,12],[17,1,17,6],[16,1,16,6],[17,10,17,15],[21,1,21,8],[24,4,24,7],[18,1,18,2],[20,1,20,2],[20,5,20,6],[23,4,23,5],[19,1,19,2],[19,5,19,6],[18,4,18,7],[22,2,22,6],[12,10,12,12],[10,14,10,15],[12,4,12,6],[15,1,15,6],[15,10,15,15],[14,10,14,12],[13,10,13,12],[13,1,13,6],[11,1,11,2],[12,1,12,2],[14,4,14,7],[11,10,11,14],[11,6,11,8],[11,4,11,5],[10,1,10,2],[10,10,10,12],[2,0,3,0],[6,10,6,13],[9,13,9,16],[6,3,6,7],[7,3,7,7],[8,3,8,7],[8,1,8,2],[6,1,6,2],[9,1,9,2],[7,1,7,2]]}
[{"$f":"[1]Tabelle1!$B$1","v":"2026-01-05"}]
["Tarifstand:"]
[{"$f":"Vorbelegung!B1","v":"2026-03-01"}]
[]
[]
[]
[null,"Großkunde:",null,"Schotes Bauträger GmbH",null,null,null,null,null,null,"Prämienberechnung für Beginn in:",null,null,null,2026]
[null,"Eigentümer:",null,null,null,null,null,null,null,null,"Laufzeit:",5,"Jahr/e"]
[null,"Versicherungsort:"]
[null,"Wert 1914:",null,null,{"$f":"IF(Eingabe!D10=0,\"Wert 1914 angeben\",D10*Berechnung!B69)","v":"Wert 1914 angeben"},{"$f":"IF(D10>0,\"Neubauwert\",\"\")","v":""},null,null,null,null,null,null,null,"Jahresbeitrag inkl. Vers. Steuer"]
[null,"Baujahr:",null,null,{"$f":"IF(D11=\"\",\"Baujahr angeben\",IF(D11=O7,\"\",\"Gebäudealter:\"))","v":"Baujahr angeben"},{"$f":"IF(D11=\"\",\"\",IF(D11=O7,\"\",Berechnung!C9))","v":""},{"$f":"IF(D11=\"\",\"\",IF(Berechnung!C9=0,\"Neubau\",IF(F11=1,\"Jahr\",IF(F11>1,\"Jahre\",\"\"))))","v":""},null,null,null,"Gebäudeversicherung:",null,null,{"$f":"IF(M22=\"Nein\",\"\",IF(D11=\"\",\"\",IF(B14=\"Berechnung des Beitragssatzes erforderlich! ( Wechseln Sie zur Vorbelegung )\",\"\",Berechnung!L13)))","v":""}]
[null,"Denkmalschutz:",null,null,{"$f":"IF(AND(D12=\"Ja\",Denkmalschutz!Q27=\"\"),\"Berechnung erforderlich\",Denkmalschutz!Q27)","v":""},null,{"$f":"IF(E12=\"Kategorie C\",\"für UVZ Gutachten beifügen\",\"\")","v":""},null,null,null,{"$f":"IF(AND(H14=\"Ja\",D13=\"Ja\"),\"(Feuer, Leitungswasser, Sturm/Hagel, erweiterte Elementarschäden, PUG)\",IF(AND(H14=\"Nein\",D13=\"ja\"),\"(Feuer, Leitungswasser, Sturm/Hagel, erweiterte Elementarschäden)\",IF(AND(H14=\"Ja\",D13=\"Nein\"),\"(Feuer, Leitungswasser, Sturm/Hagel, PUG)\",IF(AND(H14=\"Nein\",D13=\"Nein\"),\"(Feuer, Leitungswasser, Sturm/Hagel)\",\"\"))))","v":""}]
[null,"Elementar:",null,null,{"$f":"IF(D13=\"Ja\",\"nur ZÜRS Zone I und II versicherbar\",\"\")","v":""},null,null,"PUG:",null,null,"Glas komplettes Gebäude:",null,null,{"$f":"IF(D19=\"\",\"\",IF(D20=\"\",\"\",IF(O22=\"Nein\",\"\",IF(Berechnung!N22>47.6,Berechnung!N22,Berechnung!F19))))","v":""},{"$f":"IF(N13=Berechnung!F19,\"Mindestbeitrag\",\"\")","v":"Mindestbeitrag"}]
[null,{"$f":"IF(D11=\"\",\"\",IF(Vorbelegung!J5>0,\"\",IF(Vorbelegung!K5>0,\"\",IF(D11<O7,\"Berechnung des Beitragssatzes erforderlich! ( Wechseln Sie zur Vorbelegung )\",\"\"))))","v":""},null,null,null,null,null,"Nein"]
[null,"Erhöhung der Entschädigungsgrenze für:",null,null,{"$f":"IF(D12=\"\",\"\",IF(D12=\"Kategorie C\",\"Unterversicherungsverzicht nur mit Wertgutachten\",\"\"))","v":""},null,null,null,null,null,"Haus und Grundhaftpflicht:",null,null,{"$f":"IF(D19=\"\",\"\",IF(D20=\"\",\"\",IF(M23=\"Nein\",\"\",IF(Berechnung!N29>Berechnung!I26,Berechnung!N29,Berechnung!I26))))","v":""},{"$f":"IF(M23=\"Nein\",\"\",IF(N15=0,\"\",IF(N15=Berechnung!I26,\"Mindestbeitrag\",\"\")))","v":""}]
[null,"Ableitungsrohre auf dem Versicherungsgrundstück von 3.000 € auf 6.000 €",null,null,null,null,null,"Nein",null,null,"Deckungssumme 10.000.000 € für Sach-, Personenschäden"]
[null,"Ableitungsrohre außerhalb des Versicherungsgrundstücks von 3.000 € auf 6.000 €",null,null,null,null,null,"Nein",null,null,"Gewässerschadenhaftpflicht:",null,null,{"$f":"IF(O23=\"Nein\",\"\",IF(AND(O23=\"Ja\",D21=\"Nein\"),\"\",IF(AND(O23=\"Ja\",D21=\"\"),\"\",IF(AND(O23=\"Ja\",D21<>\"Nein\",F21=\"\"),\"\",IF(Berechnung!I42>Berechnung!D39,Berechnung!I42,Berechnung!D39)))))","v":""},{"$f":"IF(O23=\"Nein\",\"\",IF(N17=0,\"\",IF(N17=Berechnung!D39,\"Mindestbeitrag\",\"\")))","v":""}]
[null,"Wird eine Selbstbeteiligung von 300 € für die Gefahren F, LW, ST gewünscht?",null,null,null,null,null,"Nein",null,null,"Deckungssumme 10.000.000 € für Sach-, Personen-, Vermögensschäden"]
[null,"Wohneinheiten:",null,null,{"$f":"IF(H18=\"Ja\",\"Prämie bitte bei der Fachabteilung erfragen!\",\"\")","v":""}]
[null,"Gewerbeeinheiten:",null,null,{"$f":"IF(G11=\"Neubau\",\"Rohbauzeit:\",\"\")","v":""},null,null,null,null,null,"Berechnung, Angebot und Antrag drucken für:"]
[null,"Öltank:",null,null,{"$f":"IF(D21=\"Nein\",\"\",\"Inhalt in Liter:\")","v":"Inhalt in Liter:"},null,null,{"$f":"IF(D21=\"Ja\",\"Liter\",\"\")","v":""},null,null,null,null,{"$f":"IF(M22=\"Ja\",\"\",IF(M23=\"Ja\",\"\",IF(O22=\"Ja\",\"\",IF(O23=\"Ja\",\"\",\"gewünschte Versicherung wählen !\"))))","v":"gewünschte Versicherung wählen !"}]
[null,{"$f":"IF(D20>D19,\"Nur über Rahmenvertrag versicherbar wenn Flächenanteil < 50%, Ausnahme: reines Bürogebäude\",\"\")","v":""},null,null,null,null,null,null,null,null,null,"Geb. Vers.","Nein","Glas kompl.","Nein"]
[null,null,{"$f":"IF(D10>500000,\"Wert 1914 ist über 500.000 Mark, Anfrage Fachabteilung erforderlich\",\"\")","v":""},null,null,null,null,null,null,null,null,"HuG Haftpfl.","Nein","Öltank Haftpfl.","Nein"]
[null,"Ergebnis der Wertermittlung:",null,{"$f":"Wert1914!T30","v":{"$error":"#DIV/0!"}},"Tarifierungsnachlass VGV:"]
[null,{"$f":"IF(D24=0,\"ohne Wertermittlung\",IF(D24<=D10,\"inkl.Unterversicherungsverzicht\",IF(D24>D10,\"ohne Unterversicherungsverzicht\",\"\")))","v":{"$error":"#DIV/0!"}},null,null,{"$f":"IF(G24>0.25,\"nur 1 % bis 25 % möglich!\",\"\")","v":""}]
[null,null,null,null,null,"GroßkundenNr:",{"$f":"IF(Eingabe!$D$7<>\"\",VLOOKUP(Eingabe!$D$7,Hausverwaltungen!$A$2:$B$8,2,FALSE),\"\")","v":"230000404"}]
[null,null,null,null,null,"Mitarbeiter:","Edmund"]
[]
[]
[]
[]
[]
[]
[]
[]
[]
[]
[]
[]
[]
[]
[]
[]
[]
[]
[]
[]
[]
[]
[]
[]
[]
[]
[]
[]
[]
[]
[]
[]
[]
[]
[]
[]
[]
[]
[]
[]
[]
[]
[]
[]
[]
[]
[]
[]
[]
[]
[]
[]
[]
[]
[]
[]
[]
[]
[]
[]
[]
[]
[]
[]
[]
[]
[]
[]
[]
[]
[]
[]
[]
[]
[]
[]
[]
[]
[]
[]
[]
[]
[]
[]
[]
[]
[]
[null,100]

{"sheet":"Hausverwaltungen","index":1,"n_rows":2,"n_cols":7,"rows_kept":2,"cut":false,"hidden":true,"merged":[]}
["Großkunde auswählen:","Nr. HV","Strasse und Nr.","PLZ","Ort","Telefon","Emailadresse"]
["Schotes Bauträger GmbH","230000404","Süchtelner Str.68","41066","Mönchengladbach","02161 - 241940","j.schufen@schotes.de"]

{"sheet":"Vorbelegung","index":2,"n_rows":19,"n_cols":16,"rows_kept":19,"cut":false,"hidden":false,"merged":[[3,1,3,2],[4,1,4,2],[10,1,10,4],[6,11,6,12],[6,7,6,10],[3,6,3,8],[4,6,4,8],[8,1,8,4],[2,11,2,12],[3,11,3,12],[13,7,13,11],[14,7,14,11],[11,7,11,8],[11,9,11,10],[12,11,12,12],[12,8,12,10],[6,13,6,14],[16,12,16,14],[17,12,17,14],[9,1,9,3],[16,8,16,10],[17,8,17,10],[13,2,13,4],[18,1,18,3],[18,7,18,14],[7,1,7,3],[15,8,15,10],[15,12,15,14],[12,13,12,14],[7,13,7,14],[8,13,8,14],[9,13,9,14],[10,13,10,14],[7,7,7,10],[8,7,8,10],[9,7,9,10],[10,7,10,10],[11,13,11,14]]}
[1,"2026-03-01",null,null,null,null,null,null,null,null,null,null,null,null,null,2]
[null,null,null,null,null,null,null,null,null,null,null,null,null,null,null,{"$f":"Berechnung!F108","v":""}]
[null,"Jahr:",null,null,null,null,null,null,null,"F-LW-ST","F-LW-ST-EE","Vers.Steuer VGV:",null,null,null,{"$f":"Berechnung!F112","v":{"$error":"#VALUE!"}}]
[null,"Baukostenindex:",null,null,null,null,"Mindestbeitragssatz:",null,null,null,null,"Vers.Steuer Sonst.:",null,null,null,{"$f":"Berechnung!F110","v":{"$error":"#VALUE!"}}]
[null,"gl. Neuwertfaktor:",null,null,null,null,"individueller Beitragssatz:",null,null,null,null,null,null,null,null,{"$f":"Berechnung!H117","v":{"$error":"#DIV/0!"}}]
[null,null,null,null,null,null,null,null,null,null,null,null,null,null,null,{"$f":"Berechnung!F122","v":{"$error":"#DIV/0!"}}]
[null,null,null,null,null,null,null,"Wird auf Berechnung und Angebotsdruck angezeigt !",null,null,null,"Nr. Vertriebspartner",null,"Name Vertriebspartner",null,{"$f":"Berechnung!F120","v":{"$error":"#DIV/0!"}}]
[null,"Speicherort für Berechnungen:",null,null,null,null,"Art:","AXA Versicherung",null,null,null,"Mitarbeiter","VEP Nr.","Name Mitarbeiter"]
[null,"O:\\ImmoGrandeTool\\Berechnungen\\",null,null,null,null,"Name:",null,null,null,null,null,"01"]
[null,null,null,null,null,null,"Ihr Berater:",{"$f":"IF(Eingabe!$G$27<>\"\",VLOOKUP(Eingabe!$G$27,Berechnung!$G$76:$I$79,2,FALSE),\"\")","v":{"$error":"#N/A"}}]
[null,null,null,null,null,null,"Adresse:"]
[null,"Beitrag:",null,null,null,null,"Tel / Fax:"]
[null,"Wert1914:",null,{"$f":"IF(A1=1,Berechnung!F108,IF(A1=2,Berechnung!H117,\"\"))","v":""},null,null,"Email:","Email:",{"$f":"IF(Eingabe!$G$27<>\"\",VLOOKUP(Eingabe!$G$27,Berechnung!$G$83:$H$86,2,FALSE),\"\")","v":{"$error":"#N/A"}}]
[null,null,{"$f":"IF(J5<>\"\",\"\",IF(K5<>\"\",\"\",IF(AND(D13<>\"\",P1=0),\"Geben Sie an ob die Prämie mit oder ohne Elementar ist!\",IF(AND(D13<>\"\",P1>0),\"Klicken Sie auf Übernehmen!\",\"\"))))","v":""},null,null,null,"Bürozeiten: "]
[null,null,null,null,null,null,null,null,null,null,null,null,"VEP Nr.:",{"$f":"IF(Eingabe!G27<>\"\",VLOOKUP(Eingabe!G27,Berechnung!G76:J79,4,FALSE),\"\")","v":{"$error":"#N/A"}}]
[null,null,null,null,null,null,null,"VEP Nr.","E-Mail Adresse",null,null,"VEP Nr.","E-Mail Adresse"]
[null,null,null,null,null,null,null,{"$f":"M9","v":"01"},null,null,null,{"$f":"M11","v":0}]
[null,null,null,null,null,null,null,{"$f":"M10","v":0},null,null,null,{"$f":"M12","v":0}]
[null,null,null,null,null,null,null,"Bei Änderung der Vorbelegung, Speichern nicht vergessen !!"]

{"sheet":"Wert1914","index":3,"n_rows":33,"n_cols":23,"rows_kept":33,"cut":false,"hidden":true,"merged":[[32,12,32,14],[1,1,1,11],[4,1,4,4],[30,1,30,4],[28,1,28,7],[2,12,2,19],[3,12,3,19],[27,12,27,14],[28,12,28,14],[29,12,29,14],[21,16,21,19],[4,12,4,19],[27,18,27,20],[22,16,22,19],[20,17,20,20],[23,18,23,19]]}
[null,null,null,null,null,null,null,null,null,null,null,null,null,null,null,null,null,null,null,null,null,null,26]
[null,"Ermittlung der Versicherungssumme 1914 für Wohngebäude",null,null,null,null,null,null,null,null,null,null,"Ermittlung der Bauausführungen und -ausstattungen",null,null,null,null,null,null,null,null,null,2]
[null,"nach Wohn-/Gewerbefläche und Ausstattungsmerkmalen für Wohn- und teilweise (max 49 % der Fläche)",null,null,null,null,null,null,null,null,null,null,"Der für den jeweiligen Gebäudetyp angegebene Wert berücksichtigt folgende übliche Bauausführungen und -ausstattungen:",null,null,null,null,null,null,null,null,null,false]
[null,"gewerblich genutzte Gebäude der Bauartklassen I und II oder Fertighausgruppen I und II",null,null,null,null,null,null,null,null,null,null,"Außenwände mit gefugtem Mauerwerk, Putz, Verkleidung oder Verblendsteinen; Parkett-, Teppich- oder Fliesenböden; Doppelfenster",null,null,null,null,null,null,null,null,null,false]
[null,"Ermittlung des Gebäudetypes",null,null,null,null,null,null,null,null,null,null,"oder Isolierverglasung; Naßräume und Küche gefliest; Bad/Dusche; Zentralheizung und zentrale Warmwasserversorgung",null,null,null,null,null,null,null,null,null,false]
[null,null,null,null,null,null,null,null,null,null,null,null,null,null,null,null,null,null,null,null,"Wert 1914",null,false]
[null,"ohne Unterkellerung",null,null,null,null,null,null,null,null,null,null,"Bauausführung",null,"Innenausbau",null,null,null,"Installation",null,null,null,false]
[null,"Flachdach",null,null,"DG nicht ausgebaut",null,null,"DG ausgebaut",null,null,null,null,"Dach","Außenwände","Decken/Wände","Fußböden","Fenster","Türen","Sanitär","Heizung",null,null,false]
[null,null,null,null,null,null,null,null,null,null,null,null,null,null,null,null,null,null,null,null,null,null,false]
[null,null,null,null,null,null,null,null,null,null,null,null,null,null,null,null,null,null,null,null,null,null,false]
[null,null,null,null,null,null,null,null,null,null,null,null,null,null,null,null,null,null,null,null,null,null,false]
[null,null,null,{"$f":"(W1=1)*150","v":0},null,null,{"$f":"(W1=4)*135","v":0},null,null,{"$f":"(W1=7)*125","v":0},null,null,null,null,null,null,null,null,null,null,null,null,false]
[null,null,null,{"$f":"(W1=2)*160","v":0},null,null,{"$f":"(W1=5)*140","v":0},null,null,{"$f":"(W1=8)*130","v":0},null,null,null,null,null,null,null,null,null,null,null,null,false]
[null,null,null,{"$f":"(W1=3)*160","v":0},null,null,{"$f":"(W1=6)*160","v":0},null,null,{"$f":"(W1=9)*140","v":0},null,null,null,null,null,null,null,null,null,null,{"$f":"SUM(M15:T15)","v":0},null,false]
[null,null,null,null,null,null,null,null,null,null,null,null,{"$f":"IF(W3=TRUE,4,\"\")","v":""},{"$f":"IF(W4=TRUE,5,\"\")","v":""},{"$f":"IF(W5=TRUE,6,\"\")","v":""},{"$f":"IF(W6=TRUE,4,\"\")","v":""},{"$f":"IF(W7=TRUE,4,\"\")","v":""},{"$f":"IF(W8=TRUE,3,\"\")","v":""},{"$f":"IF(W9=TRUE,6,\"\")","v":""},{"$f":"IF(W10=TRUE,6,\"\")","v":""}]
[null,"mit Unterkellerung (auch Teilunterkellerung)"]
[]
[]
[null,null,null,null,null,null,null,null,null,{"$f":"IF(I19=\"X\",130,\"\")","v":""},null,null,null,null,null,{"$f":"IF(W11=TRUE,-3,\"\")","v":""},{"$f":"IF(W12=TRUE,-3,\"\")","v":""},null,{"$f":"IF(W13=TRUE,-4,\"\")","v":""},{"$f":"IF(W14=TRUE,-4,\"\")","v":""},{"$f":"SUM(M19:T19)","v":0}]
[null,null,null,null,null,null,null,null,null,{"$f":"IF(I20=\"X\",130,\"\")","v":""},null,null,null,null,null,{"$f":"IF(P19=\"X\",-3,\"\")","v":""},{"$f":"IF(Q19=\"X\",-3,\"\")","v":""},null,{"$f":"IF(S19=\"X\",-4,\"\")","v":""},{"$f":"IF(T19=\"X\",-4,\"\")","v":""}]
[null,null,null,{"$f":"(W1=10)*130","v":0},null,null,{"$f":"(W1=16)*130","v":0},null,null,{"$f":"(W1=22)*130","v":0},null,null,null,null,null,null,null,"Wert 1914 pro qm Wohn-/ gewerblicher Nutzfläche"]
[null,null,null,{"$f":"(W1=11)*135","v":0},null,null,{"$f":"(W1=17)*130","v":0},null,null,{"$f":"(W1=23)*130","v":0},null,null,null,null,null,null,"Bauart und Ausstattung",null,null,null,{"$f":"K31+U14+U19","v":150}]
[null,null,null,{"$f":"(W1=12)*150","v":0},null,null,{"$f":"(W1=18)*150","v":0},null,null,{"$f":"(W1=24)*135","v":0},null,null,"Ermittlung der Wohn-/Gewerbefläche, Ermittlung der VS 1914",null,null,null,{"$f":"IF(Eingabe!D12=\"Ja\",\"Zuschlag für Denkmalschutz\",\"\")","v":""},null,null,null,{"$f":"Denkmalschutz!T30","v":0}]
[null,null,null,{"$f":"(W1=13)*150","v":0},null,null,{"$f":"(W1=19)*150","v":0},null,null,{"$f":"(W1=25)*140","v":0},null,null,"Wohnfläche ist die Grundfläche einer Wohnung einschl. Hobbyräume, ausgenommen sind dabei jedoch Treppen, Keller- und Speicherräume",null,null,null,null,null,"Gesamtsumme",null,{"$f":"SUM(U22:U23)","v":150}]
[null,null,null,{"$f":"(W1=14)*190","v":0},null,null,{"$f":"(W1=20)*165","v":0},null,null,{"$f":"(W1=26)*150","v":150},"Wert 1914",null,"(soweit nicht zu Wohn- und Hobbyzwecken ausgebaut), Balkone, Loggien und Terrassen."]
[null,null,null,{"$f":"(W1=15)*190","v":0},null,null,{"$f":"(W1=21)*190","v":0},null,null,{"$f":"(W1=27)*165","v":0},null,null,"Gewerbliche Nutzfläche ist die Grundfläche, die für die gewerbliche Nutzung bzw. für das Führen eines Gewerbebetriebes genutzt wird."]
[null,null,null,null,null,null,null,null,null,null,{"$f":"SUM(D12:J26)","v":150}]
[null,null,null,null,null,null,null,null,null,null,null,null,"Geamtwohn-/Gewerbefläche ab Erdgeschoss",null,null,null,"Qm",{"$f":"P28*U24","v":0},"Versicherungssumme 1914"]
[null,null,null,null,null,null,null,null,null,null,{"$f":"(W2=1)*K27/100*10","v":0},null,"Wohn-/Gewerbefläche im Kellergeschoss",null,null,null,"Qm",{"$f":"P29*15","v":0}]
[null,null,null,null,null,null,null,null,null,null,null,null,"Garagen (Doppelgarage = 2 Stück)",null,null,null,"Stück",{"$f":"P30*700","v":0},null,{"$f":"SUM(R28:R33)","v":{"$error":"#DIV/0!"}}]
[null,"Summe Wert 1914 Gebäudetyp",null,null,null,null,null,null,null,null,{"$f":"SUM(K14:K29)","v":150},null,"Carports (Doppelcarport = 2 Stück)",null,null,null,"Stück",{"$f":"P31*350","v":0}]
[null,null,null,null,null,null,null,null,null,null,null,null,"Tiefgaragenstellplätze",null,null,null,"Plätze",{"$f":"P32*1500","v":0}]
[null,null,null,null,null,null,null,null,null,null,null,null,"Besonderheiten auswählen/eintragen",null,null,null,"Wert",{"$f":"P33/Vorbelegung!D4","v":{"$error":"#DIV/0!"}}]

{"sheet":"Denkmalschutz","index":4,"n_rows":34,"n_cols":23,"rows_kept":34,"cut":false,"hidden":true,"merged":[[9,16,10,19],[28,12,28,14],[32,4,32,6],[32,8,32,10],[25,12,25,14],[26,12,26,14],[27,12,27,14],[24,4,24,6],[24,8,24,10],[23,16,23,20],[26,16,26,19],[27,16,27,21],[25,4,25,6],[26,4,26,6],[27,4,27,6],[25,8,25,10],[27,8,27,10],[26,8,26,10],[7,12,7,14],[8,12,8,14],[4,8,4,10],[4,12,4,14],[13,4,13,6],[14,4,14,6],[8,8,8,10],[11,12,11,14],[13,12,13,14],[14,12,14,14],[13,8,13,10],[10,12,10,14],[12,4,12,6],[9,12,9,14],[12,8,12,10],[12,12,12,14],[11,8,11,10],[11,4,11,6],[7,4,7,6],[8,4,8,6],[6,8,6,10],[7,8,7,10],[4,4,4,6],[5,4,5,6],[3,7,3,10],[3,11,3,14],[3,3,3,6],[1,4,1,5],[6,4,6,6],[6,12,6,14],[13,16,13,17],[12,16,12,17],[12,18,12,19],[13,18,13,19],[16,12,16,14],[16,16,17,19],[18,16,18,17],[18,18,18,19],[19,16,19,17],[19,18,19,19],[25,16,25,19]]}
[]
[null,"besteht Denkmalschutz?",null,null,{"$f":"Eingabe!D12","v":0},null,null,"Zuschlagberechnung Wert 1914 für denkmalgeschützte Gebäude"]
[null,null,null,null,null,null,null,null,null,null,null,null,null,null,null,null,null,null,null,null,null,null,0]
[null,null,null,"ohne denkmalfachlichen Mehraufwand",null,null,null,"mittlerer denkmalfachlicher Mehraufwand",null,null,null,"hoher denkmalfachlicher Mehraufwand",null,null,null,null,null,null,null,null,null,null,0]
[null,null,null,null,"Katergorie A",null,null,null,"Kategorie B",null,null,null,"Kategorie C",null,null,null,null,null,null,null,null,null,0]
[null,null,null,null,null,null,null,null,null,null,null,null,null,null,null,null,null,null,null,null,null,null,0]
[null,null,"Fassade",null,null,null,null,null,"künstlerische Bauzier/Fassadenschmuck",null,null,null,"reichhaltig verzierte Fassade mit"]
[null,null,null,null,"ohne Bauzier oder Fassadenschmuck",null,null,null,"wie z. B. Putzfassade mit einfacher Zier,",null,null,null,"Gesimsen und Friesen, Kapitellen,"]
[null,null,null,null,null,null,null,null,"schmiedeeiserne Geländer",null,null,null,"Säulen, Wandbemalungen, Schnitzwerk"]
[null,null,null,null,null,null,null,null,null,null,null,null,"an Balken, Steinmetzarbeiten",null,null,null,"Außenbereich"]
[]
[]
[null,null,"Dach",null,"einfache Dachform (1),",null,null,null,"einfache Dachform (1) mit einfachen",null,null,null,"aufwendige Dachformen (1) und/oder mit",null,null,null,"Fassade",null,"Dach"]
[null,null,null,null,"keine besonderen Baumaterialien",null,null,null,"Gauben",null,null,null,"zahlreichen aufwendig gestalteten",null,null,null,{"$f":"IF(W3=1,\"Kategorie A\",IF(W3=2,\"Kategorie B\",IF(W3=3,\"Kategorie C\",\"\")))","v":""},null,{"$f":"IF(W4=1,\"Kategorie A\",IF(W4=2,\"Kategorie B\",IF(W4=3,\"Kategorie C\",\"\")))","v":""},null,null,null,{"$f":"IF(Q14=\"Kategorie A\",1,IF(Q14=\"Kategorie B\",10,IF(Q14=\"Kategorie C\",100,\"\")))","v":""}]
[null,null,null,null,"oder Verlegetechniken",null,null,null,null,null,null,null,"Gauben und Türmchen, handgeformte",null,null,null,null,null,null,null,null,null,{"$f":"IF(S14=\"Kategorie A\",1,IF(S14=\"Kategorie B\",10,IF(S14=\"Kategorie C\",100,\"\")))","v":""}]
[null,null,null,null,null,null,null,null,null,null,null,null,"Ziegel und spezielle Verlegetechniken",null,null,null,null,null,null,null,null,null,{"$f":"IF(Q20=\"Kategorie A\",1,IF(Q20=\"Kategorie B\",10,IF(Q20=\"Kategorie C\",100,\"\")))","v":""}]
[null,null,null,null,null,null,null,null,null,null,null,null,null,null,null,null,"Innenbereich",null,null,null,null,null,{"$f":"IF(S20=\"Kategorie A\",1,IF(S20=\"Kategorie B\",10,IF(S20=\"Kategorie C\",100,\"\")))","v":""}]
[null,null,"(1) zu den einfachen Dachformen (Mischformen sind möglich) zählen: (Alle anderen Dachformen fallen unter die Kategorie C)"]
[null,null,null,null,null,null,null,null,null,null,null,null,null,null,null,null,"Wände und Decken",null,"Treppen",null,null,null,{"$f":"SUM(W14:W18)","v":0}]
[null,null,null,null,null,null,null,null,null,null,null,null,null,null,null,null,{"$f":"IF(W5=1,\"Kategorie A\",IF(W5=2,\"Kategorie B\",IF(W5=3,\"Kategorie C\",\"\")))","v":""},null,{"$f":"IF(W6=1,\"Kategorie A\",IF(W6=2,\"Kategorie B\",IF(W6=3,\"Kategorie C\",\"\")))","v":""}]
[]
[]
[]
[]
[]
[null,null,"Wände und",null,null,null,null,null,"einfache Stuckarbeiten und",null,null,null,"historisch wertvolle Stuckarbeiten,",null,null,null,"Gesamtes Gebäude"]
[null,null,"Decken im",null,"einfach verputzt und tapeziert",null,null,null,"Holzvertäfelungen",null,null,null,"Decken und Wandbemalungen,",null,null,null,{"$f":"IF(W19=0,\"\",IF(W19<10,\"Kategorie A\",IF(W19<50,\"Kategorie B\",IF(W19>100,\"Kategorie C\",))))","v":""}]
[null,null,"Innenbereich",null,null,null,null,null,null,null,null,null,"textile Wand- und Deckenbespannungen,",null,null,null,{"$f":"IF(Q27=\"Kategorie C\",\"Wertermittlung nur durch Bausachverständigen möglich\",IF(Q27=\"Kategorie A\",\"Kein Zuschlag erforderlich\",IF(Q27=\"Kategorie B\",\"Zuschlag wird der Wertermittlung hinzugefügt\",\"\")))","v":""}]
[null,null,null,null,null,null,null,null,null,null,null,null,"aufwendige Holzvertäfelungen,"]
[null,null,null,null,null,null,null,null,null,null,null,null,"handgeformte Fliesen",null,null,null,"Zuschlag für Denkmalschutz",null,null,{"$f":"IF(Q27=\"Kategorie B\",Wert1914!U22/100*20,0)","v":0}]
[]
[]
[null,null,"Treppen",null,"einfache Massiv- oder Holztreppen",null,null,null,"Massiv- oder Holztreppen",null,null,null,"reich verzierte Treppen, handgeschnitzte"]
[null,null,null,null,null,null,null,null,"mit einfachen Verzierungen",null,null,null,"Handläufe und Brüstungen"]

{"sheet":"Antrag","index":5,"n_rows":28,"n_cols":23,"rows_kept":28,"cut":false,"hidden":true,"merged":[[25,3,25,8],[25,9,25,10],[15,4,15,5],[21,7,21,8],[8,8,8,9],[14,2,14,5],[14,8,14,9],[10,1,10,2],[22,1,22,2],[11,3,11,9],[10,3,10,9],[20,3,20,4],[20,5,20,6],[20,7,20,9],[12,1,12,10],[23,3,23,9],[2,14,2,19],[2,12,2,13],[7,16,7,17],[6,16,6,17],[8,17,8,22],[2,9,2,10],[5,8,5,9],[6,8,6,9],[7,8,7,9],[3,9,3,10],[12,14,12,16],[3,2,3,7],[24,3,24,8],[22,3,22,9],[9,12,9,16],[13,12,13,22],[10,19,10,22],[13,1,13,8],[15,1,15,3],[15,7,15,8],[17,1,17,9],[18,1,18,9],[19,1,19,9],[21,1,21,2]]}
[]
[null,"Antragsangaben:"]
[null,null,null,null,null,null,null,null,"Nr Vertriebspartner:",{"$f":"Vorbelegung!N15","v":{"$error":"#N/A"}},null,null,"Wohngebäude",null,{"$f":"IF(Eingabe!M22=\"Ja\",Druck_Angebot!A34,\"wird nicht beantragt\")","v":"wird nicht beantragt"}]
[null,"Großkunde:",{"$f":"Eingabe!D7","v":"Schotes Bauträger GmbH"},null,null,null,null,null,"Nr Großkunde:",{"$f":"Eingabe!G26","v":"230000404"}]
[null,null,null,null,null,null,null,null,null,null,null,null,{"$f":"IF(Eingabe!M22=\"Ja\",\"Vertragsbeginn:\",\"\")","v":""},"01","06",{"$f":"IF(Eingabe!M22=\"Ja\",Eingabe!O7,\"\")","v":""},{"$f":"IF(Eingabe!M22=\"Ja\",\"Vertragsablauf:\",\"\")","v":""},{"$f":"IF(Eingabe!M22=\"Ja\",\"01\",\"\")","v":""},{"$f":"IF(Eingabe!M22=\"Ja\",\"01\",\"\")","v":""},{"$f":"IF(Eingabe!M22=\"Nein\",\"\",IF(AND(Eingabe!M22=\"Ja\",O5>\"01\"),P5+Eingabe!L8+\"1\",P5+Eingabe!L8))","v":""},{"$f":"IF(Eingabe!M22=\"Ja\",\"Vertragsdauer:\",\"\")","v":""},{"$f":"IF(Eingabe!M22=\"Ja\",Eingabe!L8,\"\")","v":""},{"$f":"IF(Eingabe!M22=\"Ja\",\"Jahr/e\",\"\")","v":""}]
[null,{"$f":"IF(Eingabe!M22=\"Ja\",\"Wohngebäude:\",\"\")","v":""},null,null,"X",{"$f":"IF(Eingabe!M22=\"Ja\",\"Neu\",\"\")","v":""},null,{"$f":"IF(Eingabe!M22=\"Ja\",\"Änderung zu\",\"\")","v":""}]
[null,{"$f":"IF(Eingabe!M23=\"Ja\",\"Haus- und Grundbesitzerhaftpflicht:\",\"\")","v":""},null,null,null,{"$f":"IF(Eingabe!M23=\"Ja\",\"Neu\",\"\")","v":""},null,{"$f":"IF(Eingabe!M23=\"Ja\",\"Änderung zu\",\"\")","v":""},null,null,null,null,"Wie wird das Gebäude genutzt?",null,null,null,"Wohnzwecke",null,{"$f":"IF(Eingabe!D19=0,\"Nein\",\"Ja\")","v":"Nein"}]
[null,{"$f":"IF(Eingabe!O22=\"Ja\",\"Glas:\",\"\")","v":""},null,null,null,{"$f":"IF(Eingabe!O22=\"Ja\",\"Neu\",\"\")","v":""},null,{"$f":"IF(Eingabe!O22=\"Ja\",\"Änderung zu\",\"\")","v":""},null,null,null,null,null,null,null,null,"Gewerbliche Nutzung",null,{"$f":"IF(Eingabe!D20>0,\"Ja\",\"Nein\")","v":"Nein"},null,{"$f":"IF(S8=\"Ja\",\"Flächenanteil:\",\"\")","v":""},0.2]
[null,{"$f":"IF(Eingabe!O23=\"Ja\",\"Gewässerschadenhaftpflicht:\",\"\")","v":""},null,null,null,{"$f":"IF(Eingabe!O23=\"Ja\",\"Neu\",\"\")","v":""},null,{"$f":"IF(Eingabe!O23=\"Ja\",\"Änderung zu\",\"\")","v":""},null,null,null,null,null,null,null,null,{"$f":"IF(S8=\"Ja\",\"Gewerbeart:\",\"\")","v":""},"Büro"]
[null,null,null,null,null,null,null,null,null,null,null,null,{"$f":"IF(S7=\"Nein\",\"Wird das gesamte Gebäude ständig benutzt?\",IF(AND(S7=\"Ja\",S8=\"Ja\"),\"Wird das Gebäude bewohnt und die Gewerbeeinheiten benutzt?\",\"Wird das gesamte Gebäude ständig bewohnt?\"))","v":"Wird das gesamte Gebäude ständig benutzt?"},null,null,null,null,"Ja",null,"besonderer Hinweis:"]
[null,"Gebäudeeigentümer:",null,{"$f":"Eingabe!D8","v":0},null,null,null,null,null,null,null,null,{"$f":"IF(AND(R10=\"Nein\",R11=\"\"),\"ungenutzter Flächenanteil bitte angeben:\",\"\")","v":""}]
[null,"Risikoort:",null,{"$f":"Eingabe!D9","v":0},null,null,null,null,null,null,null,null,"Sollen Besonderheiten (durch den Eigentümer eingebaut) mitversichert werden?",null,null,null,null,null,null,null,{"$f":"IF(Wert1914!P33>0,\"Ja\",\"Nein\")","v":"Nein"}]
[null,{"$f":"IF(AND(C15<>\"\",I15<>\"\",D22<>\"\"),\"\",IF(AND(E6=\"X\",Eingabe!D11<P5),\"Angaben der Vorversicherung (Gesellschaft, Vers. Schein Nr., Vorschäden) erforderlich!\",\"\"))","v":""},null,null,null,null,null,null,null,null,null,null,{"$f":"IF(U12=\"ja\",Wert1914!P33,\"\")","v":""},{"$f":"IF(U12=\"Ja\",\"für\",\"\")","v":""},{"$f":"IF(U12=\"Ja\",Wert1914!M33,\"\")","v":""},null,null,{"$f":"IF(R11>25%,\"Anfrage Fachabteilung da Leerstand über 25 %\",\"\")","v":""}]
[null,{"$f":"IF(Eingabe!D11<P5,\"Besteht oder bestand für das Objekt ein anderweitiger Versicherungsvertrag?\",\"\")","v":""},null,null,null,null,null,null,null,null,null,null,{"$f":"IF(V8>50%,\"Nicht über Rahmenvertrag versicherbar, da Gewerbeanteil über 50 %, (Ausnahme: reines Bürogebäude!)\",\"\")","v":""}]
[null,{"$f":"IF(Eingabe!D11<P5,\"Versicherer:\",\"\")","v":""},"Allianz",null,null,null,null,{"$f":"IF(Eingabe!D11<P5,\"Vers. Nr.:\",\"\")","v":""},"1212121"]
[null,{"$f":"IF(Eingabe!D11<P5,\"Versicherungssumme Wert 1914:\",\"\")","v":""},null,null,{"$f":"Vorbelegung!C13","v":0},null,null,{"$f":"IF(Eingabe!D11<P5,\"Bisheriger Jahresbeitrag:\",\"\")","v":""},null,{"$f":"Vorbelegung!C12","v":0},null,null,"Glas",null,{"$f":"IF(Eingabe!O22=\"Ja\",Druck_Angebot!A38,\"wird nicht beantragt\")","v":"wird nicht beantragt"}]
[]
[null,{"$f":"IF(Eingabe!D11<P5,\"Wurde innerhalb der letzten 3 Jahre (10 Jahre bei Versicherung Weiterer Elementarschäden)\",\"\")","v":""},null,null,null,null,null,null,null,null,null,null,{"$f":"IF(Eingabe!O22=\"Ja\",\"Vertragsbeginn:\",\"\")","v":""},null,null,{"$f":"IF(Eingabe!O22=\"Ja\",Eingabe!O7,\"\")","v":""},{"$f":"IF(Eingabe!O22=\"Ja\",\"Vertragsablauf:\",\"\")","v":""},{"$f":"IF(Eingabe!O22=\"Ja\",\"01\",\"\")","v":""},{"$f":"IF(Eingabe!O22=\"Ja\",\"01\",\"\")","v":""},{"$f":"IF(Eingabe!O22=\"Nein\",\"\",IF(AND(Eingabe!O22=\"Ja\",O18>\"01\"),P18+Eingabe!L8+\"1\",P18+Eingabe!L8))","v":""},{"$f":"IF(Eingabe!O22=\"Ja\",\"Vertragsdauer:\",\"\")","v":""},{"$f":"IF(Eingabe!O22=\"Ja\",Eingabe!L8,\"\")","v":""},{"$f":"IF(Eingabe!O22=\"Ja\",\"Jahr/e\",\"\")","v":""}]
[null,{"$f":"IF(Eingabe!D11<P5,\"vor Antragstellung das zu versichernde Risiko von Schäden betroffen (unabhängig davon, ob\",\"\")","v":""}]
[null,{"$f":"IF(Eingabe!D11<P5,\"Versicherungsschutz bestand oder nicht)?\",\"\")","v":""}]
[null,null,null,{"$f":"IF(Druck_Berechnung!C37=\"Nein\",\"Schadensquote:\",\"\")","v":""},null,{"$f":"IF(Druck_Berechnung!C37=\"Nein\",Druck_Berechnung!D37,\"\")","v":""},null,{"$f":"IF(Druck_Berechnung!C37=\"Nein\",\"Anfrage Fachabteilung erforderlich!\",\"\")","v":""},null,null,null,null,"Haus- und Grundbesitzerhaftpflicht",null,null,null,{"$f":"IF(Eingabe!M23=\"Ja\",Druck_Angebot!A36,\"wird nicht beantragt\")","v":"wird nicht beantragt"}]
[null,{"$f":"IF(Eingabe!D11<P5,\"Anzahl Vorschäden:\",\"\")","v":""},null,"keine",null,null,null,{"$f":"IF(Eingabe!D11<P5,\"Schadenhöhe gesamt:\",\"\")","v":""}]
[null,{"$f":"IF(Eingabe!D11<P5,\"Art der Vorschäden:\",\"\")","v":""},null,null,null,null,null,null,null,null,null,null,{"$f":"IF(Eingabe!M23=\"Ja\",\"Vertragsbeginn:\",\"\")","v":""},null,null,{"$f":"IF(Eingabe!M23=\"Ja\",Eingabe!O7,\"\")","v":""},{"$f":"IF(Eingabe!M23=\"Ja\",\"Vertragsablauf:\",\"\")","v":""},{"$f":"IF(Eingabe!M23=\"Ja\",\"01\",\"\")","v":""},{"$f":"IF(Eingabe!M23=\"Ja\",\"01\",\"\")","v":""},{"$f":"IF(Eingabe!M23=\"Nein\",\"\",IF(AND(Eingabe!M23=\"Ja\",O23>\"01\"),P23+Eingabe!L8+\"1\",P23+Eingabe!L8))","v":""},{"$f":"IF(Eingabe!M23=\"Ja\",\"Vertragsdauer:\",\"\")","v":""},{"$f":"IF(Eingabe!M23=\"Ja\",Eingabe!L8,\"\")","v":""},{"$f":"IF(Eingabe!M23=\"Ja\",\"Jahr/e\",\"\")","v":""}]
[null,"SEPA-Lastschriftmandat:",null,{"$f":"IF(AND(D22<>\"Keine\",D22>0,J22=\"\"),\"Gesamtschadenhöhe angeben\",\"\")","v":""}]
[null,"Name des Kontoinhabers:",null,null,null,null,null,null,null,"Mandatart:"]
[null,"IBAN:",null,null,null,null,null,null,null,"keine Abbuchung",null,null,"Gewässerschadenhaftpflicht",null,null,null,{"$f":"IF(Eingabe!O23=\"Ja\",Druck_Angebot!A40,\"wird nicht beantragt\")","v":"wird nicht beantragt"}]
[]
[null,null,null,null,null,null,null,null,null,null,null,null,{"$f":"IF(Eingabe!O23=\"Ja\",\"Vertragsbeginn:\",\"\")","v":""},null,null,{"$f":"IF(Eingabe!O23=\"Ja\",Eingabe!O7,\"\")","v":""},{"$f":"IF(Eingabe!O23=\"Ja\",\"Vertragsablauf:\",\"\")","v":""},{"$f":"IF(Eingabe!O23=\"Ja\",\"01\",\"\")","v":""},{"$f":"IF(Eingabe!O23=\"Ja\",\"01\",\"\")","v":""},{"$f":"IF(Eingabe!O23=\"Nein\",\"\",IF(AND(Eingabe!O23=\"Ja\",O28>\"01\"),P28+Eingabe!L8+\"1\",P28+Eingabe!L8))","v":""},{"$f":"IF(Eingabe!O23=\"Ja\",\"Vertragsdauer:\",\"\")","v":""},{"$f":"IF(Eingabe!O23=\"Ja\",Eingabe!L8,\"\")","v":""},{"$f":"IF(Eingabe!O23=\"Ja\",\"Jahr/e\",\"\")","v":""}]

{"sheet":"Druck_Antrag","index":6,"n_rows":222,"n_cols":15,"rows_kept":222,"cut":false,"hidden":true,"merged":[[88,13,88,14],[85,7,85,14],[216,0,219,15],[221,0,226,15],[15,0,18,14],[99,0,102,15],[133,0,139,15],[123,0,128,15],[145,0,152,15],[154,0,155,15],[158,0,163,15],[165,0,167,15],[169,0,174,15],[176,0,181,15],[220,0,220,15],[97,13,97,14],[187,0,187,15],[182,0,182,15],[157,0,157,15],[156,0,156,15],[214,0,214,15],[188,0,188,15],[130,11,130,14],[194,0,194,15],[207,0,207,15],[211,0,211,15],[215,0,215,15],[175,0,175,15],[183,0,186,15],[189,0,193,15],[195,0,201,15],[203,0,205,15],[208,0,210,15],[212,0,213,15],[206,0,206,15],[202,0,202,15],[74,5,74,6],[168,0,168,15],[164,0,164,15],[110,12,110,13],[119,7,119,12],[120,7,120,12],[142,2,142,7],[142,11,142,14],[142,0,142,1],[141,9,141,10],[142,9,142,10],[144,0,144,15],[153,0,153,15],[130,1,130,4],[141,0,141,1],[141,2,141,7],[141,11,141,14],[83,5,83,6],[97,0,97,9],[79,0,79,9],[79,13,79,14],[94,1,94,11],[92,13,92,15],[88,0,88,9],[39,5,39,6],[27,0,27,14],[28,0,28,14],[30,8,30,10],[31,6,31,13],[56,11,56,13],[56,7,56,10],[30,6,30,7],[70,13,70,14],[53,0,53,5],[52,2,52,14],[58,4,58,12],[76,6,76,9],[76,10,76,14],[24,8,24,10],[83,0,83,1],[22,6,22,14],[74,13,74,15],[54,7,54,8],[54,9,54,14],[37,14,37,15],[83,13,83,15],[57,9,57,13],[40,5,40,6],[40,7,40,14],[51,0,51,12],[35,5,35,6],[35,13,35,15],[74,0,74,1],[60,0,60,13],[61,0,61,13],[62,0,62,13],[70,0,70,9],[43,12,43,13],[38,0,38,4],[38,5,38,6],[25,16,25,19],[24,11,24,14],[10,0,10,11],[38,14,38,15],[2,7,2,12],[4,12,4,13],[13,6,13,14],[24,1,24,6],[5,10,5,13],[6,10,6,13],[7,10,7,13],[8,10,8,13]]}
[null,null,null,"– Anmeldung zur Rahmenvereinbarung"]
[]
["Großkunde",null,null,null,null,{"$f":"Eingabe!G26","v":"230000404"},null,{"$f":"Eingabe!D7","v":"Schotes Bauträger GmbH"}]
["Vertriebspartner",null,null,null,null,{"$f":"Vorbelegung!N15","v":{"$error":"#N/A"}}]
[]
["Wohngebäude",null,null,null,null,null,{"$f":"Antrag!E6","v":"X"},"Neu",{"$f":"Antrag!G6","v":0},"Änderung zu",{"$f":"Antrag!I6","v":0}]
["Haus- und Grundbesitzerhaftpflicht",null,null,null,null,null,{"$f":"Antrag!E7","v":0},"Neu",{"$f":"Antrag!G7","v":0},"Änderung zu",{"$f":"Antrag!I7","v":0}]
["Glas",null,null,null,null,null,{"$f":"Antrag!E8","v":0},"Neu",{"$f":"Antrag!G8","v":0},"Änderung zu",{"$f":"Antrag!I8","v":0}]
["Gewässerschadenhaftpflicht",null,null,null,null,null,{"$f":"Antrag!E9","v":0},"Neu",{"$f":"Antrag!G9","v":0},"Änderung zu"]
[]
["Die Hauptfälligkeit aller beantragten Versicherungen ist der 01.01. eines jeden Jahres."]
[]
["Antragsteller (Versicherungsnehmer)"]
["Gebäudeeigentümer",null,null,null,null,null,{"$f":"Antrag!D11","v":0}]
[]
["Damit wir Ihren Versicherungsantrag ordnungsgemäß prüfen können, ist es notwendig, dass Sie die in Textform gestellten Fragen wahrheitsgemäß und vollständig beantworten. Eine Verletzung Ihrer vorvertraglichen Anzeigepflicht kann uns zum Rücktritt, zur Kündigung oder zur Vertragsanpassung berechtigen. Unvollständige und unrichtige Angaben können – auch rückwirkend – zum vollständigen oder teilweisen Wegfall des Versicherungsschutzes führen. Bitte beachten Sie hierzu Abschnitt „A) Mitteilung nach § 19 Abs. 5 VVG über die Folgen einer Verletzung der vorvertraglichen Anzeigepflicht‘‘ auf Seite 3 dieses Antrags."]
[]
[]
[]
[]
["Allgemeine Risikofragen"]
[]
["Wo befindet sich der Risikoort?",null,null,null,null,null,{"$f":"Eingabe!D9","v":0}]
["Besteht oder bestand für das Objekt ein anderweitiger Versicherungsvertrag?"]
["Versicherer:",{"$f":"IF(I6=\"X\",\"Continentale\",Antrag!C15)","v":"Allianz"},null,null,null,null,null,null,"Versicherungsnummer:",null,null,{"$f":"IF(I6=\"X\",K6,Antrag!I15)","v":"1212121"}]
["Bisheriger Jahresbeitrag:",null,null,null,null,{"$f":"Antrag!J16","v":0}]
[]
["Wurde innerhalb der letzten 3 Jahre (10 Jahre bei Versicherung Weiterer Elementarschäden) vor Antragstellung das zu versichernde Risiko von Schäden betroffen"]
["( unabhängig davon ob Versicherungsschutz bestand oder nicht )?"]
[]
["Anzahl Vorschäden:",null,null,null,null,null,{"$f":"Antrag!D22","v":"keine"},null,"Schadenhöhe gesamt:",null,null,{"$f":"Antrag!J22","v":0}]
["Art der Vorschäden:",null,null,null,null,null,{"$f":"Antrag!D23","v":0}]
[]
["Wohngebäude"]
[]
["Vertragsbeginn:",null,{"$f":"Antrag!N5","v":"01"},{"$f":"Antrag!O5","v":"06"},{"$f":"Antrag!P5","v":""},"Vertragsablauf: 01.01",null,{"$f":"Antrag!T5","v":""},null,"jeweils 0 Uhr","Dauer:",{"$f":"Eingabe!L8","v":5},"Jahr/e","zahlweise: Jährlich"]
[]
["Baujahr des Gebäudes:",null,null,null,{"$f":"IF(Eingabe!M22=\"Ja\",Eingabe!D11,\"\")","v":""},null,"Steht das Gebäude oder stehen Teile des Gebäudes unter Denkmalschutz?",null,null,null,null,null,null,null,{"$f":"IF(Eingabe!M22=\"Ja\",Eingabe!D12,\"\")","v":""}]
["Wie wird das Gebäude genutzt?",null,null,null,null,"Wohnzwecke",null,{"$f":"IF(Eingabe!M22=\"Ja\",Antrag!S7,\"\")","v":""},null,null,null,null,null,null,{"$f":"IF(Eingabe!M22=\"Ja\",Eingabe!E12,\"\")","v":""}]
[null,null,null,null,null,"Gewerbliche Nutzung",null,{"$f":"IF(Eingabe!M22=\"Ja\",Antrag!S8,\"\")","v":""},null,"Flächenanteil:",{"$f":"IF(Eingabe!M22=\"Ja\",Antrag!V8,\"\")","v":""}]
[null,null,null,null,null,"Gewerbeart:",null,{"$f":"IF(Eingabe!M22=\"Ja\",Antrag!R9,\"\")","v":""}]
[]
[null,null,null,null,null,null,null,null,null,null,null,"ungenutzter"]
[{"$f":"Antrag!M10","v":"Wird das gesamte Gebäude ständig benutzt?"},null,null,null,null,null,null,null,null,{"$f":"IF(Eingabe!M22=\"Ja\",Antrag!R10,\"\")","v":""},null,"Flächenanteil:",{"$f":"IF(Eingabe!M22=\"Ja\",Antrag!R11,\"\")","v":""}]
[]
["Anzahl Wohneinheiten:",null,null,null,{"$f":"IF(Eingabe!M22=\"Ja\",Eingabe!D19,\"\")","v":""},null,"Anzahl Gewerbeeinheiten:",null,null,null,{"$f":"IF(Eingabe!M22=\"Ja\",Eingabe!D20,\"\")","v":""}]
[]
["Anzahl der Garagen auf dem",null,null,null,null,null,"Anzahl der Carports auf dem",null,null,null,null,null,"Anzahl der Tiefgaragenplätze:"]
["Versicherungsgrundstück:",null,null,null,{"$f":"IF(Eingabe!M22=\"Ja\",Wert1914!P30,\"\")","v":""},null,"Versicherungsgrundstück:",null,null,null,{"$f":"IF(Eingabe!M22=\"Ja\",Wert1914!P31,\"\")","v":""},null,null,null,{"$f":"IF(Eingabe!M22=\"Ja\",Wert1914!P32,\"\")","v":""}]
["( Werte sind in der beantragten Gebäudeversicherungssumme bereits enthalten )"]
[]
["Sollen Besonderheiten, die durch den Eigentümer eingebaut wurden, mitversichert werden?",null,null,null,null,null,null,null,null,null,null,null,null,{"$f":"IF(Eingabe!M22=\"Ja\",Antrag!U12,\"\")","v":""}]
[{"$f":"Antrag!M13","v":""},{"$f":"Antrag!N13","v":""},{"$f":"Antrag!O13","v":""}]
[{"$f":"IF(A53<>\"\",\"( Wert wurde in der Wertermittlung berücksichtigt )\",\"\")","v":""}]
["Beitragsfreie Rohbauzeit:",null,null,null,null,{"$f":"IF(Eingabe!M22=\"Ja\",Eingabe!F20,\"\")","v":""},null,"Hinweis:",null,{"$f":"Antrag!T11","v":0}]
[]
["Versicherungssumme Wert 1914:",null,null,null,null,{"$f":"IF(Eingabe!M22=\"Ja\",Eingabe!D10,\"\")","v":""},null,"Unterversicherungsverzicht:",null,null,null,{"$f":"IF(Eingabe!M22=\"Ja\",Eingabe!B25,\"\")","v":""}]
[]
["Versicherte Gefahren",null,null,null,{"$f":"Eingabe!K12","v":""}]
[]
["Ableitungsrohre auf dem Versicherungsgrundstück von 3.000 € auf 6.000 € (Zuschlag 90 € zzgl. Versicherungssteuer)",null,null,null,null,null,null,null,null,null,null,null,null,null,{"$f":"IF(Eingabe!M22=\"Ja\",Eingabe!H16,\"\")","v":""}]
["Ableitungsrohre außerhalb des Versicherungsgrundstücks von 3.000 € auf 6.000 € (Zuschlag 90 € zzgl. Versicherungssteuer)",null,null,null,null,null,null,null,null,null,null,null,null,null,{"$f":"IF(Eingabe!M22=\"Ja\",Eingabe!H17,\"\")","v":""}]
["Wird eine Selbstbeteiligung von 300 € für die Gefahren Feuer, Leitungswasser, Sturm/Hagel gewünscht?",null,null,null,null,null,null,null,null,null,null,null,null,null,{"$f":"IF(Eingabe!M22=\"Ja\",Eingabe!H18,\"\")","v":""}]
[]
["*Voraussetzung für die Versicherung Weiterer Elementarschäden: Maximal 1 Vorschaden in den letzten 10 Jahren, höchstens 5.000 €"]
["• Für die Gefahren Überschwemmung, Rückstau und Schneedruck gilt eine Wartezeit von 4 Wochen ( s.h. § 4 Nr. 6 VGB 2019)"]
["• ZÜRS-Zone I und II"]
["• Der bedingungsgemäß als entschädigungspflichtig errechnete Betrag wird je Versicherungsfall um einen Selbstbehalt von 10 % des Schadens,"]
["mind. 500 €, max. 5.000 € gekürzt."]
[]
["Jahresbeitrag inklusive Dauernachlass und Versicherungssteuer:",null,null,null,null,null,null,null,null,null,null,null,null,{"$f":"IF(Eingabe!M22=\"Ja\",Eingabe!N11,\"\")","v":""}]
[]
["Glas"]
[]
["Vertragsbeginn:",null,{"$f":"Antrag!N18","v":0},{"$f":"Antrag!O18","v":0},{"$f":"Antrag!P18","v":""},"Vertragsablauf: 01.01",null,{"$f":"Antrag!T18","v":""},null,"jeweils 0 Uhr","Dauer:",{"$f":"Antrag!V18","v":""},"Jahr/e","zahlweise: Jährlich"]
[]
["Anzahl Wohneinheiten:",null,null,null,{"$f":"IF(Eingabe!O22=\"Nein\",\"\",Eingabe!D19)","v":""},null,"Versicherungsform:",null,null,null,{"$f":"Druck_Angebot!A38","v":""}]
["Anzahl Gewerbeeinheiten",null,null,null,{"$f":"IF(Eingabe!O22=\"Nein\",\"\",Eingabe!D20)","v":""}]
[]
["Jahresbeitrag inklusive Dauernachlass und Versicherungssteuer:",null,null,null,null,null,null,null,null,null,null,null,null,{"$f":"Druck_Angebot!D37","v":""}]
[]
["Haus- und Grundbesitzerhaftpflicht"]
[]
["Vertragsbeginn:",null,{"$f":"Antrag!N23","v":0},{"$f":"Antrag!O23","v":0},{"$f":"Antrag!P23","v":""},"Vertragsablauf: 01.01",null,{"$f":"Antrag!T23","v":""},null,"jeweils 0 Uhr","Dauer:",{"$f":"Antrag!V23","v":""},"Jahr/e","zahlweise: Jährlich"]
[]
["Anzahl Wohneinheiten:",null,null,null,{"$f":"IF(Eingabe!M23=\"Nein\",\"\",Eingabe!D19)","v":""},null,null,{"$f":"Druck_Angebot!A36","v":""}]
["Anzahl Gewerbeeinheiten",null,null,null,{"$f":"IF(Eingabe!M23=\"Nein\",\"\",Eingabe!D20)","v":""}]
[]
["Jahresbeitrag inklusive Dauernachlass und Versicherungssteuer:",null,null,null,null,null,null,null,null,null,null,null,null,{"$f":"Druck_Angebot!D35","v":""}]
[]
["Gewässerschaden-/Umwelthaftpflich, Umweltschaden nur für Heizöl-/Kellertanks"]
[]
["Vertragsbeginn:",null,{"$f":"Antrag!N28","v":0},{"$f":"Antrag!O28","v":0},{"$f":"Antrag!P28","v":""},"Vertragsablauf:01.01.",null,{"$f":"Antrag!T28","v":""},null,"jeweils 0 Uhr","Dauer:",{"$f":"Antrag!V28","v":""},"Jahr/e","zahlweise: Jährlich"]
[]
[null,{"$f":"Druck_Angebot!A40","v":""}]
["Gesamtfassungsvermögen in Liter:",null,null,null,null,{"$f":"Eingabe!F21","v":0},null,null,null,null,"Art der Lagerung:",null,{"$f":"IF(Eingabe!D21=\"Nein\",\"\",Eingabe!D21)","v":0}]
[]
["Jahresbeitrag inklusive Dauernachlass und Versicherungssteuer:",null,null,null,null,null,null,null,null,null,null,null,null,{"$f":"Druck_Angebot!D39","v":""}]
[]
["Nach Ablauf der vereinbarten Vertragsdauern verlängern sich die Verträge jeweils um 1 Jahr, wenn die Kündigungen nicht spätestens drei Monate vor dem Ablauf des jeweiligen Versicherungsjahrs der anderen Partei in Textform zugegangen sind. Bei einer vereinbarten Vertragsdauer von mehr als drei Jahren kann der Vertrag vom Versicherungsnehmer zum Schluss des dritten oder jedes darauf folgenden Jahrs unter Einhaltung einer Frist von drei Monaten in Textform gekündigt werden."]
[]
[]
[]
[]
["SEPA-Lastschriftmandat (sofern Antragssteller oder mitversicherte Person Kontoinhaber ist)"]
[]
["Das nachfolgende Mandat wird als sogenanntes „Rahmenmandat“ vereinbart. Dadurch können fällige Beträge, die sich gegebenenfalls aus weiteren Verträgen mit verschiedenen"]
["Versicherern des Continentale Versicherungsverbundes ergeben, in einer Summe abgebucht werden (bitte das Mandat ausfüllen und unterschreiben)."]
["Sofern Sie der Continentale Krankenversicherung a.G. bereits ein Rahmenmandat erteilt haben, werden wir dieses auch für die Einziehung der fälligen Beträge aus diesem Vertrag "]
["nutzen. Wenn Sie kein Rahmenmandat erteilen oder einer Einbeziehung dieses Vertrags in ein bereits bestehendes Rahmenmandat nicht zustimmen wollen, sondern stattdessen"]
["ein Einzelmandat wünschen, kreuzen Sie bitte das nachfolgende Feld an (bitte das Mandat ausfüllen und unterschreiben):",null,null,null,null,null,null,null,null,null,null,null,{"$f":"Antrag!J26","v":"keine Abbuchung"}]
["Aus organisatorischen Gründen werden alle Lastschriften des Continentale Versicherungsverbundes durch die Continentale Krankenversicherung a.G. "]
["(Gläubiger-Identifikationsnummer DE95ZZZ00000053646) durchgeführt und mit „Continentale/Europa Verbund“ auf Ihrem Kontoauszug ausgewiesen. "]
["Hierbei handelt die Continentale Krankenversicherung a.G. im Auftrag der anderen Versicherer des Continentale Versicherungsverbundes."]
[]
["Continentale Krankenversicherung a.G. • Ruhrallee 92, 44139 Dortmund • Handelsregister Amtsgericht Dortmund B 2271"]
["Gläubiger-Identifikationsnummer DE95ZZZ00000053646"]
["Mandatsreferenznummer – wird separat mitgeteilt."]
[]
["Name des Kontoinhabers / Firma Kontoinhaber:",null,null,null,null,null,null,{"$f":"Antrag!D25","v":0}]
["IBAN",null,null,null,null,null,null,{"$f":"Antrag!D26","v":0}]
[]
["SEPA-Lastschriftmandat:"]
["Ich ermächtige die Continentale Krankenversicherung a.G., Zahlungen von meinem Konto mittels Lastschrift einzuziehen. Zugleich weise ich mein Kreditinstitut an, die von der Continentale Krankenversicherung a.G. auf mein Konto gezogenen Lastschriften einzulösen. Hinweis: Ich kann innerhalb von acht Wochen, beginnend mit dem Belastungsdatum, die Erstattung des belasteten Betrags verlangen. Es gelten dabei die mit meinem Kreditinstitut vereinbarten Bedingungen. Ich bin damit einverstanden, dass ich rechtzeitig, mindestens jedoch einen Tag vor Belastung meines Kontos, bei jedem ersten Abruf sowie bei Änderungen von Betrag und/oder Abbuchungstermin über den bevorstehenden SEPA-Lastschrifteinzug unter Nennung des abzubuchenden Betrags informiert werde"]
[]
[]
[]
[]
[]
[]
["Datum",{"$f":"TODAY()","v":"2026-04-20"},null,null,null,null,"Unterschrift des Kontoinhabers"]
[]
["Schlusserklärung und Antragsunterschriften"]
["Bevor Sie den Antrag unterschreiben, überprüfen Sie bitte alle Angaben auf Vollständigkeit und Richtigkeit. Bitte beachten Sie hierzu Abschnitt ,,A) Mitteilung nach § 19 Abs. 5 VVG über die Folgen einer Verletzung der vorvertraglichen Anzeigepflicht“ auf Seite 4 dieses Antrags. Bitte lesen Sie die Widerrufsbelehrung in Abschnitt B), die Erläuterungen in Abschnitt D) auf den Folgeseiten und die Datenschutzhinweise sowie die Dienstleisterliste, die Information über die infoscore Consumer Data GmbH (,,ICD“) gemäß Art. 14 DS-GVO und die Informationen über den Datenaustausch mit der informa HIS GmbH auf Grundlage des Art. 14 DS-GVO in Ihrer Vertragsinformation/Ihren „Allgemeine Versicherungsbedingungen für die Haftpflichtversicherung - AHB“. Mit meiner Unterschrift mache ich die Datenschutzhinweise bei Abschluss des Versicherungsvertrags zum Inhalt des Antrags und bestätige, dass ich am Vertrag beteiligte Personen (z. B. mitversicherte Personen) zu den Datenschutzhinweisen informiere. Ich bin damit einverstanden, dass der vereinbarte Beginn des Versicherungsschutzes vor dem Ende der Widerrufsfrist liegen kann. Eine Zweitschrift des Antrags erhalten Sie nach der Unterschriftsleistung."]
[]
[]
[]
[]
[]
[]
[]
[{"$f":"TODAY()","v":"2026-04-20"},null,null,null,null,null,null,null,null,{"$f":"TODAY()","v":"2026-04-20"}]
["Datum",null,"Unterschrift des Antragsstellers",null,null,null,null,null,null,"Datum",null,"Unterschrift des Vermittlers"]
[]
["A) Mitteilung nach § 19 Abs. 5 VVG über die Folgen einer Verletzung der vorvertraglichen Anzeigepflicht"]
["Die nachfolgenden Erläuterungen zur vorvertraglichen Anzeigepflicht gelten sowohl für den Antragsteller als auch ggf. für die mit zu versichernden Personen. Die Anzeigepflicht ist vom Antragsteller – sowohl für sich als auch für die zu versichernde Person – zu beachten und zu erfüllen. Die dann folgenden Hinweise und Informationen über die Rechtsfolgen einer Anzeigepflichtverletzung gelten auch bei einer Pflichtverletzung für eine zu versichernde Person jeweils bezogen auf deren Versicherungsverhältnis. Damit wir den Versicherungsantrag ordnungsgemäß prüfen können, ist es notwendig, dass die in Textform gestellten Fragen wahrheitsgemäß und vollständig beantwortet werden. Es sind auch solche Umstände anzugeben, denen Sie nur geringe Bedeutung beimessen. Angaben, die Sie nicht gegenüber dem Versicherungsvermittler machen möchten, sind unverzüglich und unmittelbar gegenüber dem jeweiligen Versicherer schriftlich nachzuholen. Bitte beachten Sie, dass Sie Ihren Versicherungsschutz gefährden, wenn Sie unrichtige oder unvollständige Angaben machen. Nähere Einzelheiten zu den Folgen einer Verletzung der Anzeigepflicht können Sie der nachstehenden Information entnehmen."]
[]
[]
[]
[]
[]
[]
[]
["Welche vorvertraglichen Anzeigepflichten bestehen?"]
["Sie sind bis zur Abgabe Ihrer Vertragserklärung verpflichtet, alle Ihnen bekannten gefahrerheblichen Umstände, nach denen wir in Textform fragen, wahrheitsgemäß und vollständig anzuzeigen. Wenn nach Ihrer Vertragserklärung, aber vor Vertragsannahme in Textform nach gefahrerheblichen Umständen gefragt wird, sind Sie auch insoweit zur Anzeige verpflichtet."]
[]
["Welche Folgen können eintreten, wenn eine vorvertragliche Anzeigepflicht verletzt wird?"]
["1. Rücktritt und Wegfall des Versicherungsschutzes"]
["Verletzen Sie die vorvertragliche Anzeigepflicht, können wir vom Vertrag zurücktreten. Dies gilt nicht, wenn Sie nachweisen, dass weder Vorsatz noch grobe Fahrlässigkeit vorliegt. Bei grob fahrlässiger Verletzung der Anzeigepflicht haben wir kein Rücktrittsrecht, wenn wir den Vertrag auch bei Kenntnis der nicht angezeigten Umstände, wenn auch zu anderen Bedingungen, geschlossen hätten. Im Fall des Rücktritts besteht kein Versicherungsschutz. Erklären wir den Rücktritt nach Eintritt des Versicherungsfalls, bleiben wir dennoch zur Leistung verpflichtet, wenn Sie nachweisen, dass der nicht oder nicht richtig angegebene Umstand • weder für den Eintritt oder die Feststellung des Versicherungsfalls • noch für die Feststellung oder den Umfang unserer Leistungspflicht ursächlich war. Die Leistungspflicht entfällt jedoch, wenn Sie die Anzeigepflicht arglistig verletzt haben. Bei einem Rücktritt steht uns der Teil des Beitrags zu, welcher der bis zum Wirksamwerden der Rücktrittserklärung abgelaufenen Vertragszeit entspricht.\n"]
[]
[]
[]
[]
[]
["2. Kündigung"]
["Können wir nicht vom Vertrag zurücktreten, weil Sie die vorvertragliche Anzeigepflicht lediglich einfach fahrlässig oder schuldlos verletzt haben, kann der Vertrag unter Einhaltung einer Frist von einem Monat von uns gekündigt werden. Das Kündigungsrecht ist ausgeschlossen, wenn wir den Vertrag auch bei Kenntnis der nicht angezeigten Umstände, wenn auch zu anderen Bedingungen, geschlossen hätten."]
[]
[]
["3. Vertragsanpassung und Wegfall des Versicherungsschutzes"]
["Können wir nicht zurücktreten oder kündigen, weil wir den Vertrag auch bei Kenntnis der nicht angezeigten Gefahrumstände, wenn auch zu anderen Bedingungen, geschlossen hätten, werden die anderen Bedingungen auf Verlangen Vertragsbestandteil. Haben Sie die Anzeigepflicht fahrlässig verletzt, werden die anderen Bedingungen rückwirkend Vertragsbestandteil, können also für bereits eingetretene Versicherungsfälle zum Wegfall des Versicherungsschutzes führen. Haben Sie die Anzeigepflicht schuldlos verletzt, werden die anderen Bedingungen ab der laufenden Versicherungsperiode Vertragsbestandteil. Erhöht sich durch die Vertragsänderung der Beitrag um mehr als 10 % oder schließen wir die Gefahrabsicherung für den nicht angezeigten Umstand aus, können Sie den Vertrag innerhalb eines Monats nach Zugang der Mitteilung über die Vertragsanpassung fristlos kündigen. Auf dieses Recht werden wir Sie in einer Mitteilung hinweisen."]
[]
[]
[]
[]
[]
["4. Ausübung der Rechte"]
["Wir können unsere Rechte zum Rücktritt, zur Kündigung oder zur Vertragsanpassung nur innerhalb eines Monats schriftlich geltend machen. Die Frist beginnt mit dem Zeitpunkt, zu dem wir von der Verletzung der Anzeigepflicht, die das geltend gemachte Recht begründet, Kenntnis erlangt haben. Bei der Ausübung unserer Rechte haben wir die Umstände anzugeben, auf die wir die Erklärung stützen. Zur Begründung können nachträglich weitere Umstände angegeben werden, wenn für diese die Frist nach Satz 1 nicht verstrichen ist. Auf die Rechte zum Rücktritt, zur Kündigung oder zur Vertragsanpassung können wir uns nicht berufen, wenn der nicht angezeigte Gefahrumstand oder die Unrichtigkeit der Anzeige bekannt war. Die Rechte zum Rücktritt, zur Kündigung und zur Vertragsanpassung erlöschen mit Ablauf von fünf Jahren nach Vertragsschluss. Dies gilt nicht für Versicherungsfälle, die vor Ablauf dieser Frist eingetreten sind. Die Frist beträgt zehn Jahre, wenn Sie die Anzeigepflicht vorsätzlich oder arglistig verletzt haben."]
[]
[]
[]
[]
[]
["5. Stellvertretung durch eine andere Person"]
["Lassen Sie sich bei Abschluss des Vertrags durch eine andere Person vertreten, so sind bezüglich der Anzeigepflicht, des Rücktritts, der Kündigung, der Vertragsanpassung und der Ausschlussfrist für die Ausübung unserer Rechte die Kenntnis und Arglist Ihres Stellvertreters als auch Ihre Kenntnis und Arglist zu berücksichtigen. Sie können sich darauf, dass die Anzeigepflicht nicht vorsätzlich oder grob fahrlässig verletzt worden ist, nur berufen, wenn weder Ihrem Stellvertreter noch Ihnen Vorsatz oder grobe Fahrlässigkeit zur Last fällt."]
[]
[]
[]
["B) Widerrufsbelehrung"]
["Widerrufsrecht"]
["Sie können Ihre Vertragserklärung innerhalb von 14 Tagen ohne Angabe von Gründen in Textform (z. B. Brief, Fax, E-Mail) widerrufen. Die Frist beginnt, nachdem Sie den Versicherungsschein, die Vertragsbestimmungen einschließlich der Allgemeinen Versicherungsbedingungen, die weiteren Informationen nach § 7 Abs. 1 und 2 des Versicherungsvertragsgesetzes in Verbindung mit den §§ 1 bis 4 der Verordnung über Informationspflichten bei Versicherungsverträgen und diese Belehrung jeweils in Textform erhalten haben. Zur Wahrung der Widerrufsfrist genügt die rechtzeitige Absendung des Widerrufs. \nDer Widerruf ist zu richten an die Continentale Sachversicherung AG, Direktion: Ruhrallee 92 in 44139 Dortmund.\n"]
[]
[]
[]
[]
["Widerrufsfolgen"]
["Im Falle eines wirksamen Widerrufs endet der Versicherungsschutz, und wir erstatten Ihnen den auf die Zeit nach Zugang des Widerrufs entfallenen Teil der Beiträge, wenn Sie zugestimmt haben, dass der Versicherungsschutz vor dem Ende der Widerrufsfrist beginnt. Den Teil des Beitrags, der auf die Zeit bis zum Zugang des Widerrufs entfällt, dürfen wir in diesem Fall einbehalten. Die Berechnung des entsprechenden Betrags erfolgt anhand folgender Formel: Anzahl der Tage, an denen Versicherungsschutz bestanden hat X 1/360 des Beitrags der jährlichen Zahlung (bei halb-, vierteljährlicher und monatlicher Zahlung entsprechend 1/180, 1/90 bzw. 1/30 des Zahlbeitrags). Die Erstattung zurückzuzahlender Beträge erfolgt unverzüglich, spätestens 30 Tage nach Zugang des Widerrufs. Beginnt der Versicherungsschutz nicht vor dem Ende der Widerrufsfrist, hat der wirksame Widerruf zur Folge, dass empfangene Leistungen zurückzugewähren und gezogene Nutzungen (z. B. Zinsen) herauszugeben sind."]
[]
[]
[]
[]
[]
[]
["Besondere Hinweise"]
["Das Widerrufsrecht besteht nicht bei Versicherungsverträgen mit einer Laufzeit von weniger als einem Monat und bei Versicherungsverträgen über vorläufige Deckung. Widerrufen Sie wirksam einen Ersatzvertrag, so läuft Ihr ursprünglicher Versicherungsvertrag weiter. Ihr Widerrufsrecht erlischt, wenn der Vertrag auf Ihren ausdrücklichen Wunsch sowohl von Ihnen als auch von uns vollständig erfüllt ist, bevor Sie Ihr Widerrufsrecht ausgeübt haben."]
[]
[]
["Ende der Widerrufsbelehrung"]
["C) Datenschutzhinweise"]
["Sie finden die Informationen über die Verarbeitung Ihrer personenbezogenen Daten durch die Continentale Sachversicherung AG und die Ihnen nach dem Datenschutzrecht zustehenden Rechte in Ihrer Vertragsinformation und, wie auch weitere Informationen zum Datenschutz, unter www.continentale.de/datenschutz."]
[]
[]
["Datenschutzhinweise bei abweichendem Beitragszahler"]
["Übernimmt ein andere als eine am Vertrag beteiligte Person die Beitragszahlung erhält sie die Datenschutzhinweise mit der Vorankündigung zum SEPA-Lastschrifteinzug, wenn und soweit sie nicht bereits über die Information verfügt."]
[]
["D) Allgemeine Erläuterungen"]
["1. Beginn des Versicherungsschutzes"]
["Der Versicherer gewährt Versicherungsschutz mit Beginndatum im Antrag, frühestens jedoch ab Antragsaufnahme, und zwar auch dann, wenn zur Beitragszahlung erst später aufgefordert wird, der Beitrag aber dann unverzüglich gezahlt wird. Voraussetzung ist, dass der Antrag innerhalb von drei Werktagen nach Aufnahme in der Maklerdirektion/Regionaldirektion bzw. Direktion eingegangen ist und es sich um ein den Tarifbedingungen entsprechendes Risiko handelt. Ist dem Versicherungsnehmer bei Antragstellung bekannt, dass der Versicherungsfall schon eingetreten ist, entfällt hierfür die Leistungspflicht des Versicherers."]
[]
[]
[]
["2. Beitragszahlung/-verzug"]
["Der Versicherungsnehmer hat den ersten Beitrag bei Aushändigung des Versicherungsscheins zu zahlen. Folgebeiträge am Ersten des Monats, in dem ein neues Versicherungsjahr beginnt. Die Folgen nicht rechtzeitiger Zahlung des ersten Beitrags oder der ersten Rate des ersten Beitrags ergeben sich aus § 37 VVG; im Übrigen gilt § 38 VVG. Sofern der erste Beitrag vom Versicherungsnehmer nicht rechtzeitig gezahlt wird und er dies auch zu vertreten hat, entfällt außerdem rückwirkend der aufgrund einer evtl. erteilten vorläufigen Deckung bestehende Versicherungsschutz. Ist Ratenzahlung vereinbart, so gelten die ausstehenden Raten bis zu den vereinbarten Zahlungsterminen als gestundet. Die gestundeten Raten des lfd. Versicherungsjahrs werden sofort fällig, wenn der Versicherungsnehmer mit einer Rate ganz oder teilweise in Verzug gerät oder soweit eine Entschädigung fällig wird."]

{"sheet":"Druck_Wert1914","index":7,"n_rows":123,"n_cols":9,"rows_kept":123,"cut":false,"hidden":true,"merged":[[103,6,103,7],[99,1,99,2],[99,5,99,6],[99,3,99,4],[74,10,74,12],[77,5,77,6],[77,7,77,8],[63,5,63,6],[65,5,65,6],[64,5,64,6],[71,5,71,6],[71,7,71,8],[4,1,4,2],[4,4,4,6],[5,1,5,3],[116,6,116,7],[111,0,111,2],[111,6,111,8],[36,0,36,7],[37,0,37,7],[38,0,38,7],[112,0,112,2],[113,0,113,2],[72,1,72,2],[77,1,77,2],[77,3,77,4],[71,1,71,2],[71,3,71,4],[116,0,118,2],[10,1,26,3],[17,5,17,7],[19,5,19,8],[21,5,21,8],[65,1,65,2],[63,3,63,4],[64,3,64,4],[63,1,63,2],[64,1,64,2],[65,3,65,4],[95,5,95,6],[95,3,95,4],[95,1,95,2],[95,7,95,8],[99,7,99,8]]}
["Ermittlung der Versicherungssumme 1914 für Wohngebäude"]
["nach Wohn-/Gewerbefläche und Ausstattungsmerkmalen für Wohn- und teilweise gewerblich"]
["genutzte Gebäude der Bauartklassen I und II oder Fertighausgruppen I und II"]
[]
["Antragsteller:",{"$f":"Eingabe!D8","v":0},null,"vertreten durch:",{"$f":"Eingabe!D7","v":"Schotes Bauträger GmbH"}]
["für Objekt:",{"$f":"Eingabe!D9","v":0}]
[]
[]
[]
[]
[]
[]
[]
[]
[]
[]
[]
[null,null,null,null,null,"Ermittlung des Gebäudetypes"]
[]
[null,null,null,null,null,{"$f":"IF(Wert1914!W1<4,\"Flachdach, ohne Unterkellerung\",IF(Wert1914!W1<7,\"Dachgeschoss nicht ausgebaut, ohne Unterkellerung\",IF(Wert1914!W1<10,\"Dachgeschoss ausgebaut, ohne Unterkellerung\",IF(Wert1914!W1<16,\"Flachdach, mit Unterkellerung\",IF(Wert1914!W1<22,\"Dachgeschoss nicht ausgebaut, mit Unterkellerung\",IF(Wert1914!W1<28,\"Dachgeschoss ausgebaut, mit Unterkellerung\",\"\"))))))","v":"Dachgeschoss ausgebaut, mit Unterkellerung"}]
[]
[null,null,null,null,null,{"$f":"IF(OR(Wert1914!W1=3,Wert1914!W1=6,Wert1914!W1=9,Wert1914!W1=15,Wert1914!W1=21,Wert1914!W1=27),\"Erdgeschoss\",IF(OR(Wert1914!W1=2,Wert1914!W1=5,Wert1914!W1=8,Wert1914!W1=14,Wert1914!W1=20,Wert1914!W1=26),\"Erdgeschoss und 1 Obergeschoss\",IF(OR(Wert1914!W1=1,Wert1914!W1=4,Wert1914!W1=7,Wert1914!W1=13,Wert1914!W1=19,Wert1914!W1=25),\"Erdgeschoss und 2 Obergeschosse\",IF(OR(Wert1914!W1=12,Wert1914!W1=18,Wert1914!W1=24),\"Erdgeschoss und 3 Obergeschosse\",IF(OR(Wert1914!W1=11,Wert1914!W1=17,Wert1914!W1=23),\"Erdgeschoss und 4 Obergeschosse\",IF(OR(Wert1914!W1=10,Wert1914!W1=16,Wert1914!W1=22),\"Erdgeschoss und 5 Obergeschosse\",\"\"))))))","v":"Erdgeschoss und 1 Obergeschoss"}]
[]
[]
[]
[null,null,null,null,null,null,null,null,"Wert 1914"]
[]
[null,null,null,null,null,null,null,null,{"$f":"Wert1914!K27","v":150}]
[]
[]
[null,null,null,null,null,{"$f":"IF(Wert1914!W2=1,\"Geschosse über 3 m Höhe\",\"\")","v":""},null,null,{"$f":"Wert1914!K29","v":0}]
[]
[null,null,null,null,null,"Summe Wert 1914 Gebäudetyp",null,null,{"$f":"Wert1914!K31","v":150}]
[]
["Ermittlung der Bauausführungen und -ausstattungen"]
[]
["Der für den jeweiligen Gebäudetyp angegebene Wert berücksichtigt folgende übliche Bauausführungen und -ausstattungen:"]
["Außenwände mit gefugtem Mauerwerk, Putz, Verkleidung oder Verblendsteinen; Parkett-, Teppich- oder Fliesenböden; Doppelfenster"]
["oder Isolierverglasung; Naßräume und Küche gefliest; Bad/Dusche; Zentralheizung und zentrale Warmwasserversorgung"]
[null,null,null,null,null,null,null,null,"Wert 1914"]
["Bauausführung",null,"Innenausbau",null,null,null,"Installation"]
["Dach","Außenwände","Decken/Wände","Fußböden","Fenster","Türen","Sanitär","Heizung"]
["Naturschieferdach,","Naturstein-,","Stuckarbeiten,","Natursteinböden,","Leichtmetall-","Edelholztüren","hochwertige","Wärmepumpen"]
["Kupferdach","Keramik-,","Edelholz-","Parkett oder","oder",null,"sanitäre","Solaranlagen,"]
[null,"Kunststein-","verkleidungen","Teppichböden in","Holzsprossen-",null,"Einrichtungen","Fußboden /"]
[null,"verkleidung",null,"hochwertiger","fenster",null,null,"Deckenheizung"]
[null,"Handstrich-",null,"Qualität"]
[null,"Klinker"]
[{"$f":"Wert1914!M15","v":""},{"$f":"Wert1914!N15","v":""},{"$f":"Wert1914!O15","v":""},{"$f":"Wert1914!P15","v":""},{"$f":"Wert1914!Q15","v":""},{"$f":"Wert1914!R15","v":""},{"$f":"Wert1914!S15","v":""},{"$f":"Wert1914!T15","v":""}]
[null,null,null,null,null,null,null,null,{"$f":"Wert1914!U14","v":0}]
[null,null,null,"PVC-Böden","einfaches",null,"ohne Bad/","Ofenheizung"]
[null,null,null,"auf Estrich","Fensterglas",null,"Dusche"]
[null,null,null,{"$f":"Wert1914!P19","v":""},{"$f":"Wert1914!Q19","v":""},null,{"$f":"Wert1914!S19","v":""},{"$f":"Wert1914!T19","v":""}]
[null,null,null,null,null,null,null,null,{"$f":"Wert1914!U19","v":0}]
[]
[]
[]
[]
["Zuschlagberechnung Wert 1914 für denkmalgeschützte Gebäude"]
[]
["besteht Denkmalschutz?",null,{"$f":"IF(Eingabe!D12=\"Nein\",\"Nein\",\"Ja\")","v":"Ja"}]
[]
[]
[null,"ohne denkmalfachlichen ",null,"mittlerer denkmalfachlicher",null,"hoher denkmalfachlicher"]
[null,"Mehraufwand",null,"Mehraufwand",null,"Mehraufwand"]
[null,"Katergorie A",null,"Kategorie B",null,"Kategorie C"]
["Fassade","ohne Bauzier oder",null,"künstlerische Bauzier/",null,"reichhaltig verzierte Fassade mit"]
[null,"Fassadenschmuck",null,"Fassadenschmuck wie z.B.",null,"Gesimsen und Friesen, Kapitellen"]
[null,null,null,"Putzfassade mit einfacher Zier,",null,"Säulen, Wandbemalungen, "]
[null,null,null,"schmiedeeiserne Geländer",null,"Schnitzwerk an Balken,"]
[null,null,null,null,null,"Steinmetzarbeiten."]
[null,{"$f":"IF(Denkmalschutz!W3=1,\"X\",\"\")","v":""},null,{"$f":"IF(Denkmalschutz!W3=2,\"X\",\"\")","v":""},null,{"$f":"IF(Denkmalschutz!W3=3,\"X\",\"\")","v":""},null,{"$f":"Denkmalschutz!Q14","v":""}]
["Dach","einfache Dachform (1),",null,"einfache Dachform mit einfachen",null,"aufwendige Dachformen und/oder"]
[null,"keine besonderen",null,"Gauben",null,"mit zahlreichen aufwendig"]
[null,"Baumaterialien oder",null,null,null,"gestalteten Gauben u. Türmchen"]
[null,"Verlegetechniken",null,null,null,"handgeformte Ziegel und"]
[null,null,null,null,null,"spezielle Verlegetechniken"]
[null,{"$f":"IF(Denkmalschutz!W4=1,\"X\",\"\")","v":""},null,{"$f":"IF(Denkmalschutz!W4=2,\"X\",\"\")","v":""},null,{"$f":"IF(Denkmalschutz!W4=3,\"X\",\"\")","v":""},null,{"$f":"Denkmalschutz!S14","v":""}]
["(1) zu den einfachen Dachformen (Mischformen sind möglich) zählen: (Alle anderen Dachformen fallen unter die Kategorie C)"]
[]
[]
[]
[]
[]
[]
[]
[]
[]
[]
["Wände und","einfach verputzt und tapeziert",null,"einfache Stuckarbeiten und",null,"historisch wertvolle Stuckarbeiten,"]
["Decken im",null,null,"Holzvertäfelungen",null,"Decken und Wandbemalungen,"]
["Innenbereich",null,null,null,null,"textile Wand- und "]
[null,null,null,null,null,"Deckenbespannungen,"]
[null,null,null,null,null,"aufwendige Holzvertäfelungen,"]
[null,null,null,null,null,"handgeformte Fliesen"]
[null,{"$f":"IF(Denkmalschutz!W5=1,\"X\",\"\")","v":""},null,{"$f":"IF(Denkmalschutz!W5=2,\"X\",\"\")","v":""},null,{"$f":"IF(Denkmalschutz!W5=3,\"X\",\"\")","v":""},null,{"$f":"Denkmalschutz!Q20","v":""}]
["Treppen","einfache Massiv- oder ",null,"Massiv- oder Holztreppen",null,"reich verzierte Treppen,"]
[null,"Holztreppen",null,"mit einfachen Verzierungen",null,"handgeschnitzte Handläufe"]
[null,null,null,null,null,"und Brüstungen"]
[null,{"$f":"IF(Denkmalschutz!W6=1,\"X\",\"\")","v":""},null,{"$f":"IF(Denkmalschutz!W6=2,\"X\",\"\")","v":""},null,{"$f":"IF(Denkmalschutz!W6=3,\"X\",\"\")","v":""},null,{"$f":"Denkmalschutz!S20","v":""}]
[]
[]
[null,null,null,null,"Bauart und Ausstattung",null,null,null,{"$f":"Wert1914!U22","v":150}]
[null,null,null,null,{"$f":"IF(Eingabe!D12=\"Ja\",\"Zuschlag für Denkmalschutz\",\"\")","v":""},null,{"$f":"Denkmalschutz!Q27","v":""},null,{"$f":"Wert1914!U23","v":0}]
[null,null,null,null,"Wert 1914 pro qm Wohn-/ gewerblicher Nutzfläche",null,null,null,{"$f":"Wert1914!U24","v":150}]
[]
["Ermittlung der Wohn-/Gewerbefläche, Ermittlung der VS 1914"]
["Wohnfläche ist die Grundfläche einer Wohnung einschl. Hobbyräume, ausgenommen sind dabei jedoch Treppen, Keller- und Speicherräume"]
["(soweit nicht zu Wohn- und Hobbyzwecken ausgebaut), Balkone, Loggien und Terrassen."]
["Gewerbliche Nutzfläche ist die Grundfläche, die für die gewerbliche Nutzung bzw. für das Führen eines Gewerbebetriebes genutzt wird."]
[]
["Geamtwohn-/Gewerbefläche ab Erdgeschoss",null,null,{"$f":"Wert1914!P28","v":0},"Qm",{"$f":"Wert1914!R28","v":0}]
["Wohn-/Gewerbefläche im Kellergeschoss",null,null,{"$f":"Wert1914!P29","v":0},"Qm",{"$f":"Wert1914!R29","v":0}]
["Garagen (Doppelgarage = 2 Stück)",null,null,{"$f":"Wert1914!P30","v":0},"Stück",{"$f":"Wert1914!R30","v":0}]
["Carports (Doppelcarport = 2 Stück)",null,null,{"$f":"Wert1914!P31","v":0},"Stück",{"$f":"Wert1914!R31","v":0}]
["Tiefgaragenstellplätze",null,null,{"$f":"Wert1914!P32","v":0},"Plätze",{"$f":"Wert1914!R32","v":0}]
[{"$f":"IF(Wert1914!P33>0,Wert1914!M33,\"\")","v":""},null,null,{"$f":"Wert1914!P33","v":0},null,{"$f":"Wert1914!R33","v":{"$error":"#DIV/0!"}},"Versicherungssumme 1914:",null,{"$f":"Wert1914!T30","v":{"$error":"#DIV/0!"}}]
[]
[]
[]
[]
[]
["Ort / Datum",null,null,{"$f":"TODAY()","v":"2026-04-20"},"Unterschift VN:"]

{"sheet":"Druck_Berechnung","index":8,"n_rows":50,"n_cols":8,"rows_kept":50,"cut":false,"hidden":true,"merged":[[38,4,38,6],[39,4,39,6],[35,4,35,6],[9,5,9,7],[6,2,6,6],[7,2,7,6],[8,2,8,6],[28,4,28,6],[31,4,31,6],[22,4,22,6]]}
[]
[]
[]
[]
[null,"GroßkundenNr.",{"$f":"Eingabe!G26","v":"230000404"},"VEP Nr.:",{"$f":"Vorbelegung!N15","v":{"$error":"#N/A"}}]
[]
["Großkunde:",null,{"$f":"Eingabe!D7","v":"Schotes Bauträger GmbH"}]
["Eigentümer:",null,{"$f":"Eingabe!D8","v":0}]
["Versicherungsort:",null,{"$f":"Eingabe!D9","v":0}]
[null,null,null,null,null,"Wert1914 laut WE"]
["Wert 1914 (Mark):",null,null,null,{"$f":"Eingabe!D10","v":0},"(",{"$f":"Eingabe!D24","v":{"$error":"#DIV/0!"}},")"]
["Baujahr:",null,null,null,{"$f":"Eingabe!D11","v":0},null,{"$f":"IF(Eingabe!D11<Eingabe!O7,((Eingabe!F11) &\" \" &(Eingabe!G11) &\" alt\"),Eingabe!G11)","v":"  alt"}]
["Denkmalschutz:",null,null,null,{"$f":"Eingabe!D12","v":0}]
["Elementar:",null,null,null,{"$f":"Eingabe!D13","v":0}]
["politische und unbekannte Gefahren",null,null,null,{"$f":"Eingabe!H14","v":"Nein"}]
["Erhöhung Ableitungsrohre auf dem Vers. Grundstück:",null,null,null,{"$f":"Eingabe!H16","v":"Nein"}]
["Erhöhung Ableitungsrohre außerhalb Vers. Grundstück:",null,null,null,{"$f":"Eingabe!H17","v":"Nein"}]
["Wohneinheiten:",null,null,null,{"$f":"IF(Eingabe!D19=0,\"0\",Eingabe!D19)","v":"0"}]
["Gewerbeeinheiten:",null,null,null,{"$f":"IF(Eingabe!D20=0,\"0\",Eingabe!D20)","v":"0"}]
[]
["Beitragsberechnung für:",null,null,{"$f":"Eingabe!O7","v":2026}]
[]
["Gebäudeversicherung:",null,null,{"$f":"Eingabe!N11","v":""}]
["Glasversicherung Gebäude:",null,null,{"$f":"Eingabe!N13","v":""},{"$f":"Eingabe!O13","v":"Mindestbeitrag"}]
["Haus und Grundhaftpflicht:",null,null,{"$f":"Eingabe!N15","v":""},{"$f":"Eingabe!O15","v":""}]
["Gewässerschadenhaftpflicht:",null,null,{"$f":"Eingabe!N17","v":""},{"$f":"Eingabe!O17","v":""}]
[]
["zur VGV wurde berücksichtigt:"]
["ein Prämiensatz von:",null,null,{"$f":"Berechnung!G9","v":0},{"$f":"IF(AND(Eingabe!H14=\"Ja\",Eingabe!D13=\"Ja\"),\"(inkl. 0,20 ‰ EE + 0,15 ‰ PUG)\",IF(AND(Eingabe!H14=\"Nein\",Eingabe!D13=\"ja\"),\"(inkl.0,20 ‰ EE)\",IF(AND(Eingabe!H14=\"Ja\",Eingabe!D13=\"Nein\"),\"(inkl. 0,15 ‰ PUG)\",\"\")))","v":""}]
["Denkmalschutz",null,null,{"$f":"IF(Eingabe!D12=\"Ja\",Eingabe!E12,\"Nein\")","v":"Nein"}]
["ein Neubaunachlass von:",null,null,{"$f":"Berechnung!B13","v":0.2}]
["ein Tarifierungsnachlass von:",null,null,{"$f":"Berechnung!E13","v":0},{"$f":"IF(D32<0,\"Zuschlag Fachabteilung\",\"\")","v":""}]
["Ableitungsrohre a.d. Vers. Grundstück:",null,null,{"$f":"Berechnung!J9","v":0}]
["Ableitungsrohre auß. Vers. Grundstück:",null,null,{"$f":"Berechnung!K9","v":0}]
["ein Dauernachlass von:",null,null,{"$f":"Berechnung!H13","v":0}]
[null,null,null,null,{"$f":"IF(G12=\"Neubau\",\"\",\"Angaben Vorversicherung\")","v":"Angaben Vorversicherung"}]
["Schadensquote < 60 %:",null,{"$f":"IF(D37>0.6,\"Nein\",\"Ja\")","v":"Ja"},{"$f":"IF(D40=0,0,D41/(D23/1.1634*3))","v":0}]
["Vorversicherung mit / ohne Elementar?",null,null,{"$f":"IF(Eingabe!G11=\"Neubau\",\"\",IF(Vorbelegung!P1=2,\"mit Elementar\",IF(Vorbelegung!P1=1,\"ohne Elementar\",\"\")))","v":"mit Elementar"}]
["Wert 1914 Vorversicherer",null,null,{"$f":"Vorbelegung!C13","v":0},{"$f":"IF(Antrag!G6=\"X\",\"Continantale\",Antrag!C15)","v":"Allianz"}]
["Beitrag Vorversicherer",null,null,{"$f":"Vorbelegung!C12","v":0},{"$f":"IF(Antrag!G6=\"X\",Antrag!I6,Antrag!I15)","v":"1212121"}]
["Schadenssumme (letzten 3 Jahre)",null,null,{"$f":"Antrag!J22","v":0}]
[]
[{"$f":"Vorbelegung!H9","v":0}]
["erstellt durch:",{"$f":"Vorbelegung!H10","v":{"$error":"#N/A"}}]
[{"$f":"Vorbelegung!H11","v":0}]
[{"$f":"Vorbelegung!H12","v":0},null,{"$f":"Vorbelegung!J12","v":0}]
["Email:",{"$f":"Vorbelegung!I13","v":{"$error":"#N/A"}}]
[]
["Bürozeiten: ",{"$f":"Vorbelegung!H14","v":0}]
[null,{"$f":"Vorbelegung!H15","v":0}]

{"sheet":"Druck_Beiblatt","index":9,"n_rows":56,"n_cols":5,"rows_kept":56,"cut":false,"hidden":true,"merged":[[54,3,54,6],[55,3,55,6],[30,4,30,6],[22,3,22,6],[23,3,23,6],[39,3,39,6],[40,3,40,6]]}
[]
[]
[]
[]
[]
[]
["Beiblatt vom:",{"$f":"TODAY()","v":"2026-04-20"},"zum Antrag auf"]
[{"$f":"IF(Antrag!N5<>\"\",Antrag!M3&\", \",\"\")&IF(Antrag!N18<>\"\",Antrag!M16&\", \",\"\")&IF(Antrag!N23<>\"\",Antrag!M21&\", \",\"\")&IF(Antrag!N28<>\"\",Antrag!M26,\"\")","v":"Wohngebäude, "}]
[]
[]
["Vermittler:"]
[]
["Agentur:",{"$f":"Vorbelegung!H8","v":"AXA Versicherung"}]
["Name:",{"$f":"Vorbelegung!H9","v":0}]
["Adresse:",{"$f":"Vorbelegung!H11","v":0}]
["Berater:",{"$f":"Vorbelegung!H10","v":{"$error":"#N/A"}}]
["VEP - Nummer:",{"$f":"Vorbelegung!N15","v":{"$error":"#N/A"}}]
[]
[null,"Ich habe eine Dokumentation der Beratung erstellt und dem Antragsteller ausgehändigt."]
[]
[]
[]
[null,null,{"$f":"TODAY()","v":"2026-04-20"}]
[null,null,null,"Unterschrift des Vermittlers"]
[]
[]
[]
["Antragsteller:"]
[]
["Name:",{"$f":"Schotes","v":"Schotes Bauträger GmbH"}]
["Nr. HV",{"$f":"IF(B30<>\"\",VLOOKUP(B30,Hausverwaltungen!$A$2:$G$39,2,FALSE),\"\")","v":"230000404"}]
["Adresse",{"$f":"IF(B30<>\"\",VLOOKUP(B30,Hausverwaltungen!$A$2:$G$39,3,FALSE),\"\")","v":"Süchtelner Str.68"}]
[null,{"$f":"IF(B30<>\"\",VLOOKUP(B30,Hausverwaltungen!$A$2:$G$39,4,FALSE),\"\")","v":"41066"}]
[null,{"$f":"IF(B30<>\"\",VLOOKUP(B30,Hausverwaltungen!$A$2:$G$39,5,FALSE),\"\")","v":"Mönchengladbach"}]
[]
[null,"Ich habe eine Dokumentation der Beratung erhalten"]
[]
[]
[]
[null,null,{"$f":"TODAY()","v":"2026-04-20"}]
[null,null,null,"Unterschrift des Antragsstellers"]
[]
[]
[]
[]
[null,null,null,null,"*) Hinweis"]
[null,"Ich verzichte auf die Beratung *)",null,null,"Ein Verzicht kann sich nachteilig auf die Möglichkeit"]
[null,null,null,null,"des Versicherungsnehmers auswirken, Schadensersatzansprüche"]
[null,"Ich verzichte auf die Dokumentation der Beratung ')",null,null,"gegen den Versicherungsvermittler und/oder den/die im Antrag"]
[null,null,null,null,"genannten Versicherungsunternehmen wegen unterlassener oder"]
[null,null,null,null,"fehlerhafter Beratung und/oder Dokumentation geltend zu machen."]
[]
[]
[]
[null,null,{"$f":"TODAY()","v":"2026-04-20"}]
[null,null,null,"Unterschrift des Antragsstellers"]

{"sheet":"Druck_Angebot","index":10,"n_rows":119,"n_cols":7,"rows_kept":119,"cut":false,"hidden":true,"merged":[[10,2,10,6],[12,2,12,6],[11,2,11,6],[40,4,40,6],[30,0,30,2],[17,0,17,4],[35,4,35,6],[23,0,23,3],[32,4,32,6],[30,4,30,6],[32,0,32,2],[33,0,33,3]]}
[]
[null,null,null,null,null,null,{"$f":"TODAY()","v":"2026-04-20"}]
[]
[]
[]
[]
[]
[]
[]
[]
["Großkunde:",null,{"$f":"Eingabe!D7","v":"Schotes Bauträger GmbH"}]
["Eigentümer:",null,{"$f":"Eingabe!D8","v":0}]
["Versicherungsort:",null,{"$f":"Eingabe!D9","v":0}]
[]
["Wert 1914 (in Mark):",null,null,{"$f":"Eingabe!D10","v":0},{"$f":"Eingabe!E10","v":"Wert 1914 angeben"},{"$f":"Eingabe!F10","v":""}]
[]
["Denkmalschutz:",null,null,{"$f":"Eingabe!D12","v":0}]
[{"$f":"IF(D17=\"nein\",\"\",IF(D17=\"gering\",\"Nur die Fassade steht unter Denkmalschutz\",IF(D17=\"mittel\",\"das äußere Erscheinungsbild steht unter Denkmalschutz\",IF(D17=\"hoch\",\"das gesamte Gebäude steht unter Denkmalschutz\",\"\"))))","v":""}]
["Baujahr:",null,null,{"$f":"Eingabe!D11","v":0}]
[]
["Elementar:",null,null,{"$f":"Eingabe!D13","v":0}]
[]
["Unterversicherungsverzicht:",null,null,{"$f":"IF(Eingabe!$D$24>Eingabe!$D$10,\"Nein\",IF($D$17=\"Kategorie A\",\"Ja\",IF($D$17=\"Kategorie B\",\"Ja\",\"Ja\")))","v":{"$error":"#DIV/0!"}}]
[]
["Wohneinheiten:",null,null,{"$f":"Eingabe!D19","v":0}]
[]
["Gewerbeeinheiten:",null,null,{"$f":"Eingabe!D20","v":0}]
[]
["beitragsfreie Rohbauzeit:",null,null,{"$f":"IF(Eingabe!F20=\"\",\"\",Eingabe!F20)","v":""}]
[]
["Brutto Jahresprämien für:",null,null,{"$f":"Eingabe!O7","v":2026},{"$f":"IF(Vorbelegung!E5>Vorbelegung!D5,\"\",IF(D31>Vorbelegung!D3,\"(**)\",\"\"))","v":"(**)"}]
[]
[{"$f":"IF(Eingabe!M22=\"Ja\",\"Gebäudeversicherung:\",\"Gebäudeversicherung nicht gewünscht\")","v":"Gebäudeversicherung nicht gewünscht"},null,null,{"$f":"IF(Eingabe!M22=\"Ja\",Eingabe!N11,\"\")","v":""},{"$f":"IF(Berechnung!C13>0,\"(*)\",\"\")","v":""}]
[{"$f":"Eingabe!K12","v":""}]
[{"$f":"IF(Eingabe!M23=\"Ja\",\"Haus und Grundhaftpflicht:\",\"Haus und Grundhaftpflicht nicht gewünscht\")","v":"Haus und Grundhaftpflicht nicht gewünscht"},null,null,{"$f":"IF(Eingabe!M23=\"Ja\",Eingabe!N15,\"\")","v":""}]
[{"$f":"IF(Eingabe!M23=\"Ja\",Eingabe!K16,\"\")","v":""}]
[{"$f":"IF(Eingabe!O22=\"Ja\",\"Glasversicherung:\",\"Glasversicherung nicht gewünscht\")","v":"Glasversicherung nicht gewünscht"},null,null,{"$f":"IF(Eingabe!O22=\"Ja\",Eingabe!N13,\"\")","v":""}]
[{"$f":"IF(Eingabe!O22=\"Ja\",\"Gebäudeverglasung komplett\",\"\")","v":""}]
[{"$f":"IF(Eingabe!O23=\"Nein\",\"Gewässerschadenhaftpflicht nicht gewünscht\",\"Gewässerschadenhaftplicht:\")","v":"Gewässerschadenhaftpflicht nicht gewünscht"},null,null,{"$f":"IF(Eingabe!O23=\"Ja\",Eingabe!N17,\"\")","v":""}]
[{"$f":"IF(Eingabe!O23=\"Nein\",\"\",Eingabe!K18)","v":""}]
[{"$f":"IF(D41>0,\"Jahresbeitrag inkl. Versicherungssteuer\",\"\")","v":""},null,null,{"$f":"SUM(D33:D39)","v":0},{"$f":"IF(Eingabe!L8=5,\"( inkl. Dauernachlass)\",\"\")","v":"( inkl. Dauernachlass)"}]
[]
[{"$f":"IF(Berechnung!C13>0,\"(*)Der ausgewiesene Beitrag zur Gebäudeversicherung berücksichtigt einen Neubaunachlass, welcher sich mit dem Alter des Gebäudes automatisch ändert\",\"\")","v":""}]
[{"$f":"IF(Berechnung!C13>0,\"(Gebäudealter 0 - 5 Jahre 20 %, 6 - 15 Jahre 10 %, 16 - 30 Jahre 5 % und ab 31 Jahre kein Nachlass mehr).\",\"\")","v":""}]
[{"$f":"IF(Vorbelegung!E5>Vorbelegung!D5,\"\",IF(D31>Vorbelegung!D3,\"(**)Durch Änderung des Anpassungsfaktors zum 01.01. kann sich die Prämie zum Versicherungsbeginn ändern\",\"\"))","v":"(**)Durch Änderung des Anpassungsfaktors zum 01.01. kann sich die Prämie zum Versicherungsbeginn ändern"}]
["Mit freundlichen Grüßen"]
[]
[{"$f":"Vorbelegung!H8","v":"AXA Versicherung"}]
[{"$f":"Vorbelegung!H9","v":0}]
["Ihr Berater:",{"$f":"Vorbelegung!H10","v":{"$error":"#N/A"}}]
[{"$f":"Vorbelegung!H11","v":0}]
[{"$f":"Vorbelegung!H12","v":0},null,{"$f":"Vorbelegung!J12","v":0}]
["Email:",{"$f":"Vorbelegung!I13","v":{"$error":"#N/A"}}]
["Bürozeiten: ",{"$f":"Vorbelegung!H14","v":0}]
[null,{"$f":"Vorbelegung!H15","v":0}]
[]
["Leistungsumfang je Gebäudevertrag gemäß Anwendungsbereich"]
[]
["Aufräumungs-, Abbruch-, Bewegungs- und Schutzkosten*",null,null,null,null,null,{"$f":"Eingabe!$E$10","v":"Wert 1914 angeben"}]
["Diebstahl von fest mit dem Gebäude verbundenen Sachen",null,null,null,null,null,20000]
["Fahrtmehrkosten aus dem mind. einwöchigen Urlaub"]
["(sofern der ersatzpflichtige Schaden mind. 5.000 € beträgt)*",null,null,null,null,null,{"$f":"(Eingabe!$E$10/100)*1","v":{"$error":"#VALUE!"}}]
["Gebäudebeschädigung durch unbefugte Dritte nach (versuchtem) Einbruch*",null,null,null,null,null,{"$f":"(Eingabe!$E$10/100)*1","v":{"$error":"#VALUE!"}}]
["Gebäudebeschädigung durch Rettungskräfte nach einem Notfall*",null,null,null,null,null,{"$f":"(Eingabe!$E$10/100)*1","v":{"$error":"#VALUE!"}}]
["Genereller Unterversicherungsverzicht für Schäden bis 5.000 €",null,null,null,null,null,"Ja"]
["Gemeinschaftseigentum (Trockner, Waschmaschinen) je Gerät",null,null,null,null,null,1500]
["Grobe Fahrlässigkeit",null,null,null,null,null,"Ja"]
["Hotelkosten bis 100 € pro Tag (für längstens 1 Jahr)",null,null,null,null,null,"Ja"]
["Kosten für die Beseitigung von Graffitischäden pro Jahr (SB 250 € je Schaden)",null,null,null,null,null,5000]
["Mehrkosten infolge behördlicher Auflagen*",null,null,null,null,null,{"$f":"(Eingabe!$E$10/100)*15","v":{"$error":"#VALUE!"}}]
["Mehrkosten durch Preissteigerung nach Eintritt des Versicherungsfalls*",null,null,null,null,null,{"$f":"Eingabe!$E$10","v":"Wert 1914 angeben"}]
["Mietausfall bzw. Mietwert für gewerblich genutzte Räume",null,null,null,null,null,"24 Monate"]
["Mietausfall bzw. Mietwert von Wohnräumen",null,null,null,null,null,"24 Monate"]
["Rohbauversicherung",null,null,null,null,null,"12 Monate"]
["Sachverständigenkosten 1) 80 %",null,null,null,null,"max.",15000]
["Solar- und Photovoltaikanlagen",null,null,null,null,null,"Ja"]
["Verkehrssicherungsmaßnahmen",null,null,null,null,null,20000]
["Tierbissschäden an elektrischen Leitungen",null,null,null,null,null,5000]
["Wärmepumpenanlagen inkl. Einhausung auch außerhalb des Gebäudes"]
["auf dem Versicherungsgrundstück",null,null,null,null,null,"Ja"]
["Weiteres Zubehör und sonstige Grundstücksbestandteile",null,null,null,null,null,20000]
[]
["Zusätzlich in der Feuerversicherung"]
["Anprall/Absturz von Luftfahrzeugen",null,null,null,null,null,"Ja"]
["Anprall von Kraft- und Schienenfahrzeugen",null,null,null,null,null,"Ja"]
["Dekontaminationskosten nach Feuerschaden (max. 2,5 Mio €)",null,null,null,null,null,{"$f":"Eingabe!$E$10","v":"Wert 1914 angeben"}]
["Rettungskosten für Helfer in Absprache mit dem Versicherer",null,null,null,null,null,1500]
["Implosionsschäden",null,null,null,null,null,"Ja"]
["Gebäudeschäden bei Fehlarlarm von Rauch-/Gasmeldern*",null,null,null,null,null,{"$f":"(Eingabe!$E$10/100)*1","v":{"$error":"#VALUE!"}}]
["Nutzwärmeschäden",null,null,null,null,null,"Ja"]
["Rauch-, Ruß- und Verpuffungsschäden",null,null,null,null,null,"Ja"]
["Sengschäden",null,null,null,null,null,"Ja"]
["Überschallknall / Überschalldruckwelle",null,null,null,null,null,"Ja"]
["Überspannungsschäden durch Blitz",null,null,null,null,null,"Ja"]
[]
["Zusätzlich in der Leitungswasserversicherung"]
["Armaturen, Wasch- und Spülmaschinenschläuche*",null,null,null,null,null,{"$f":"(Eingabe!$E$10/100)*0.1","v":{"$error":"#VALUE!"}}]
["Bestimmungswidriges Austreten von Wasser aus"]
["Aquarien/Wasserbetten/Tischbrunnen/Wassersäulen",null,null,null,null,null,"Ja"]
["Bestimmungswidriges Austreten von Wasser aus Fußbodenheizungen, Klima-,"]
["Solarheizungsanlagen, Wärmepumpen",null,null,null,null,null,"Ja"]
["Bestimmungswidriges Austreten von Wasser aus nicht im Gebäude befindlichen Zisternen*",null,null,null,null,null,{"$f":"(Eingabe!$E$10/100)*1","v":{"$error":"#VALUE!"}}]
["Bruch an Gasleitungen*",null,null,null,null,null,{"$f":"(Eingabe!$E$10/100)*1","v":{"$error":"#VALUE!"}}]
["Regenabflussrohre innerhalb von Gebäuden",null,null,null,null,null,"Ja"]
["Wasser-/Gasverlust infolge Rohrbruch",null,null,null,null,null,5000]
["Zuleitungsrohre auf dem Versicherungsgrundstück, "]
["die nicht der Versorgung versicherter Anlagen/Gebäude dienen*",null,null,null,null,null,{"$f":"(Eingabe!$E$10/100)*5","v":{"$error":"#VALUE!"}}]
["Zuleitungsrohre außerhalb des Versicherungsgrundstücks, "]
["die der Versorgung versicherter Anlagen/Gebäude dienen*",null,null,null,null,null,{"$f":"(Eingabe!$E$10/100)*5","v":{"$error":"#VALUE!"}}]
["Erweiterte Versicherung von Ableitungsrohren auf dem Versicherungsgrundstück",null,null,null,null,null,{"$f":"IF(Berechnung!J9>0,\"6.000 €\",\"Nein\")","v":"Nein"}]
["Erweiterte Versicherung von Ableitungsrohren außerhalb des Versicherungsgrundstücks",null,null,null,null,null,{"$f":"IF(Berechnung!K9>0,\"6.000 €\",\"Nein\")","v":"Nein"}]
[]
["Zusätzlich in der Sturmversicherung"]
["Aufräumkosten für Bäume (inkl. Wiederbepflanzung) nach Sturm (mind. 10.000 €)",null,null,null,null,null,{"$f":"(Eingabe!$E$10/100)*1","v":{"$error":"#VALUE!"}}]
["Außenverkleidung",null,null,null,null,null,"Ja"]
["Für die Gefahren Überschwemmung, Rückstau und Schneedruck gilt eine Wartezeit von 4 Wochen ( s.h. § 4 Nr. 6 VGB 2019)"]
["Der ausgewiesene Beitrag für die Gebäudeversicherung inkl. Elementar gilt nur für die Elementarzone I und II"]
["* In der gleitenden Neuwertversicherung von der Versicherungssumme 1914 multipliziert mit dem im Zeitpunkt des Versicherungsfalls für den Vertrag geltenden Anpassungsfaktors."]
["1) Diese Deckungserweiterungen enthalten zum Teil Selbstbehalte, Höchstentschädigungsgrenzen, etc."]

{"sheet":"Berechnung","index":11,"n_rows":122,"n_cols":14,"rows_kept":122,"cut":false,"hidden":false,"merged":[[82,7,82,9],[83,7,83,9],[84,7,84,9],[85,7,85,9],[74,7,74,8],[75,7,75,8],[76,7,76,8],[77,7,77,8],[78,7,78,8]]}
["Beitragsberechnung"]
[null,null,null,null,null,null,null,null,"Für Neubauten wird ein in Abhängigkeit vom Gebäudealter"]
["Gebäude",null,null,"Beitragssatz",null,null,"Rabatte",null,"(abzustellen ist auf das Kalenderjahr der Fertigstellung) abgestufter Nachlass gewährt."]
["bei Schadenquote < 60 %",null,null,"F,LW,ST,EE","F,LW,ST",null,"Laufzeit 5 J.",null,"0 -5 Jahre","6-15 Jahre","16-30 Jahre","über 30 Jahre"]
[null,null,null,{"$f":"IF(Vorbelegung!K5=\"\",Vorbelegung!K4,IF(Vorbelegung!K5<Vorbelegung!K4,Vorbelegung!K4,Vorbelegung!K5))","v":0},{"$f":"IF(Vorbelegung!J5=\"\",Vorbelegung!J4,IF(Vorbelegung!J5<Vorbelegung!J4,Vorbelegung!J4,Vorbelegung!J5))","v":0},null,0.05,null,0.2,0.1,0.05,0]
[]
["Objekt","Baujahr","Geb.Alter","Wert 1914","Elementar","Beitragssatz","PUG","Beitrag 1914","Netto","Rohre","Rohre","Netto"]
[null,null,null,null,"Ja / Nein","%o","%o",null,null,"auf dem VSGrund","außerhalb VSGr."]
[{"$f":"Eingabe!$D$9","v":0},{"$f":"Eingabe!$D$11","v":0},{"$f":"IF(Eingabe!O7=B68,B68-B9,C68-B9)","v":0},{"$f":"Eingabe!$D$10","v":0},{"$f":"Eingabe!$D$13","v":0},{"$f":"IF(E9=\"Ja\",$D$5,E5)","v":0},{"$f":"IF(Eingabe!H14=\"ja\",F9 +0.15,F9)","v":0},{"$f":"(D9*G9)/1000","v":0},{"$f":"IF(Eingabe!O7=B68,H9*B70,H9*C70)","v":0},{"$f":"IF(Eingabe!H16=\"ja\",90,0)","v":0},{"$f":"IF(Eingabe!H17=\"ja\",90,0)","v":0},{"$f":"I9+J9+K9","v":0}]
[]
[null,"Neubau","Neubau","Netto","S Rabatt","S Rabatt","Netto","LZ Rabatt","LZ Rabatt","Netto","Vers.Steuer","Brutto"]
[null,"Nachlass","Nachlass",null,null,"in €",null,null,"in €"]
[null,{"$f":"IF(C9<6,$I$5,IF(C9<16,$J$5,IF(C9<31,$K$5,$L$5)))","v":0.2},{"$f":"L9*B13","v":0},{"$f":"L9-C13","v":0},{"$f":"Eingabe!$G$24","v":0},{"$f":"D13*E13","v":0},{"$f":"D13-F13","v":0},{"$f":"IF(Antrag!V5=5,$G$5,0)","v":0},{"$f":"G13*H13","v":0},{"$f":"G13-I13","v":0},{"$f":"J13*B71","v":0},{"$f":"J13+K13","v":0}]
[]
[]
[]
[]
["Glas",null,null,"BeitragssatzWE","BeitragssatzGE","MB"]
[null,"(1)Glas inkl. Wohnungen"]
[null,"(2)Glas (Treppenhaus usw.)"]
[null,"WE","GE","BeitragWE",null,null,null,"BeitragGE","Beitrag","LZ Rabatt","LZ Rabatt","Netto","Vers. Steuer Brutto"]
["(1)Glas inkl. Wohnungen",{"$f":"Eingabe!D19","v":0},{"$f":"Eingabe!D20","v":0},{"$f":"B22*D19","v":0},null,null,null,{"$f":"C22*E19","v":0},{"$f":"D22+H22","v":0},{"$f":"IF(Antrag!V5=5,$G$5,0)","v":0},{"$f":"I22*J22","v":0},{"$f":"I22-K22","v":0},{"$f":"L22*B72","v":0},{"$f":"L22+M22","v":0}]
["(2)Glas (Treppenhaus usw.)",{"$f":"Eingabe!D19","v":0},{"$f":"Eingabe!D20","v":0},{"$f":"B23*D20","v":0},null,null,null,{"$f":"C23*E20","v":0},{"$f":"D23+H23","v":0},{"$f":"IF(Antrag!V5=5,$G$5,0)","v":0},{"$f":"I23*J23","v":0},{"$f":"I23-K23","v":0},{"$f":"L23*B72","v":0},{"$f":"L23+M23","v":0}]
[]
["Haus- und Grundhaftpflicht",null,null,"Beitragssatz N",null,null,null,"Beitragssatz G","MB"]
[null,null,null,{"$f":"IF(Eingabe!$M$23=\"Ja\",VLOOKUP(Eingabe!$K$16,Berechnung!$A32:$F35,6,FALSE),\"\")","v":""},null,null,null,{"$f":"IF(Eingabe!$M$23=\"Ja\",VLOOKUP(Eingabe!$K$16,Berechnung!$A32:$G35,7,FALSE),\"\")","v":""},{"$f":"IF(Eingabe!$M$23=\"Ja\",VLOOKUP(Eingabe!$K$16,Berechnung!$A32:$H35,8,FALSE),\"\")","v":""}]
[]
[null,"WE","GE","BeitragWE",null,null,null,"BeitragGE","Beitrag","LZ Rabatt","LZ Rabatt","Netto","Vers. Steuer Brutto"]
[null,{"$f":"Eingabe!D19","v":0},{"$f":"Eingabe!D20","v":0},{"$f":"B29*D26","v":{"$error":"#VALUE!"}},null,null,null,{"$f":"C29*H26","v":{"$error":"#VALUE!"}},{"$f":"D29+H29","v":{"$error":"#VALUE!"}},{"$f":"IF(Antrag!V23=5,$G$5,0)","v":0},{"$f":"I29*J29","v":{"$error":"#VALUE!"}},{"$f":"I29-K29","v":{"$error":"#VALUE!"}},{"$f":"L29*B72","v":{"$error":"#VALUE!"}},{"$f":"L29+M29","v":{"$error":"#VALUE!"}}]
[]
["Deckungssummen HuG",null,null,null,null,"BeitrassatzN","BeitragssatzG","MB"]
["Deckungssumme auswählen:"]
["Deckungssumme 3.000.000 € für Sach-, Personenschäden"]
["Deckungssumme 5.000.000 € für Sach-, Personenschäden"]
["Deckungssumme 10.000.000 € für Sach-, Personenschäden"]
[]
[]
[]
["Gewässerschadenhaftpflicht",null,"MB",{"$f":"IF(Eingabe!$O$23=\"Ja\",IF(Eingabe!$D21=\"Oberirdisch\",VLOOKUP(Eingabe!$K$18,Berechnung!$A50:$H53,8,FALSE),VLOOKUP(Eingabe!$K$18,Berechnung!$A55:$H58,8,FALSE)))","v":false}]
[{"$f":"Eingabe!K18","v":"Deckungssumme 10.000.000 € für Sach-, Personen-, Vermögensschäden"}]
[{"$f":"Eingabe!D21","v":0},"Liter","Beitr.Satz","Beitrag","LZ Rabatt","LZ Rabatt","Netto","Vers.Steuer","Brutto"]
[null,{"$f":"Eingabe!F21","v":0},{"$f":"IF(Eingabe!$O$23=\"Ja\",IF(Eingabe!$D21=\"Oberirdisch\",VLOOKUP(Eingabe!$K$18,Berechnung!$A50:$H53,6,FALSE),VLOOKUP(Eingabe!$K$18,Berechnung!$A55:$H58,6,FALSE)))","v":false},{"$f":"B42*C42","v":0},{"$f":"IF(Antrag!V5=5,$G$5,0)","v":0},{"$f":"D42*E42","v":0},{"$f":"D42-F42","v":0},{"$f":"G42*B72","v":0},{"$f":"G42+H42","v":0}]
[]
["Art der Lagerung:","Nein"]
[null,"Oberirdisch"]
[null,"Unterirdisch"]
[]
[]
["Deckungssummen GSH",null,"oberirdisch",null,null,"Litter",null,"MB"]
["Deckungssumme auswählen:"]
["Deckungssumme 3.000.000 € für Sach-, Personen-, Vermögensschäden"]
["Deckungssumme 5.000.000 € für Sach-, Personen-, Vermögensschäden"]
["Deckungssumme 10.000.000 € für Sach-, Personen-, Vermögensschäden"]
["Deckungssummen GSH",null,"Unterirdisch",null,null,"Litter",null,"MB"]
["Deckungssumme auswählen:"]
["Deckungssumme 3.000.000 € für Sach-, Personen-, Vermögensschäden"]
["Deckungssumme 5.000.000 € für Sach-, Personen-, Vermögensschäden"]
["Deckungssumme 10.000.000 € für Sach-, Personen-, Vermögensschäden"]
[]
[]
[]
[]
[]
[]
["Vorbelegung"]
[]
[]
["Berechnungsjahr",{"$f":"Vorbelegung!D3","v":0},{"$f":"Vorbelegung!E3","v":0},null,"Laufzeit:",1,null,null,"Auswahl"]
["Baukostenindex",{"$f":"Vorbelegung!D4","v":0},{"$f":"Vorbelegung!E4","v":0},null,null,2,null,null,null,"X"]
["Anpassungsfaktor",{"$f":"Vorbelegung!D5","v":0},{"$f":"Vorbelegung!E5","v":0},null,null,3]
["Vers.Steuersatz VGV",null,null,null,null,4]
["Vers.Steuersatz Sonstige",null,null,null,null,5]
[]
[null,null,null,"SEPA Lastschrift",null,null,"Nr. Vertriebspartner"]
[null,null,null,null,null,null,"Int.MitarbeiterNr.",{"$f":"Vorbelegung!N8","v":"Name Mitarbeiter"},null,"VEP Nr."]
[null,null,null,"keine Abbuchung",null,null,{"$f":"Vorbelegung!L9","v":0},{"$f":"Vorbelegung!N9","v":0},null,{"$f":"Vorbelegung!M9","v":"01"}]
[null,null,null,"Einzelmandat",null,null,{"$f":"Vorbelegung!L10","v":0},{"$f":"Vorbelegung!N10","v":0},null,{"$f":"Vorbelegung!M10","v":0}]
[null,null,null,"Sammelmandat",null,null,{"$f":"Vorbelegung!L11","v":0},{"$f":"Vorbelegung!N11","v":0},null,{"$f":"Vorbelegung!M11","v":0}]
[null,null,null,"Rohbauversicherung",null,"Nein",{"$f":"Vorbelegung!L12","v":0},{"$f":"Vorbelegung!N12","v":0},null,{"$f":"Vorbelegung!M12","v":0}]
[null,null,null,null,null,"1 Monat"]
[null,null,null,null,null,"2 Monate"]
[null,null,null,null,null,"3 Monate","Email"]
[null,null,null,null,null,"4 Monate",{"$f":"G76","v":0},{"$f":"Vorbelegung!I17","v":0}]
[null,null,null,null,null,"5 Monate",{"$f":"G77","v":0},{"$f":"Vorbelegung!I18","v":0}]
[null,null,null,null,null,"6 Monate",{"$f":"G78","v":0},{"$f":"Vorbelegung!M17","v":0}]
["Elementar",null,null,null,null,"7 Monate",{"$f":"G79","v":0},{"$f":"Vorbelegung!M18","v":0}]
["Vers. Form","Ja",null,null,null,"8 Monate"]
["u.s.w.","Nein",null,null,null,"9 Monate"]
[null,null,null,null,null,"10 Monate"]
["Denkmalschutz","Nein",0,null,null,"11 Monate"]
[null,"Kategorie A",0,null,null,"12 Monate"]
[null,"Kategorie B",0.2,null,null,"13 Monate"]
[null,null,null,null,null,"14 Monate"]
[null,null,null,null,null,"15 Monate"]
[]
["Anzahl Vorschäden:",null,null,"Einbauten"]
[null,"keine",null,"Besonderheiten auswählen/eintragen"]
[null,1,null,"Einbauküche, Einbauschränke u dgl."]
[null,2,null,"Sauna, Fitnessraum u dgl."]
[null,3,null,"Gartenhaus (Nebengebäude)"]
[null,4,null,"Photovoltaikanlage"]
[null,5]
[null,">5"]
[]
[]
["Prämienrückrechnung",null,"Vers.Steuer"]
[null,"Bruttobeitrag","Netto",null,"Wert1914","Beitragssatz"]
["Übernahme Fremdversicherung",{"$f":"Vorbelegung!C12","v":0},{"$f":"B108/116.34*100","v":0},{"$f":"C108/B70","v":{"$error":"#DIV/0!"}},{"$f":"Vorbelegung!C13","v":0},{"$f":"IF(B108=\"\",\"\",IF(E108=0,\"\",(D108/E108)*1000))","v":""}]
[]
[null,null,null,"wenn Beitrag mit EE",null,{"$f":"F108-0.2","v":{"$error":"#VALUE!"}},"Beitragssatz ohne Elementar"]
[]
[null,null,null,"wenn Beitrag ohne EE",null,{"$f":"F108+0.2","v":{"$error":"#VALUE!"}},"Beitragssatz mit Elementar"]
[]
[]
[]
[null,"Jahresbeitrag","NB Rabatt","abzügl.Rabatt","Beitrag Brutto","Beitrag 1914","Summe1914","Beitragssatz"]
["Neuordnung AXA",{"$f":"Vorbelegung!$C$12","v":0},{"$f":"$B$13","v":0.2},{"$f":"1-$C$117","v":0.8},{"$f":"$B$117/$D$117","v":0},{"$f":"$E$117/$B$70","v":{"$error":"#DIV/0!"}},{"$f":"$E$108","v":0},{"$f":"($F$117/$G$117)*1000","v":{"$error":"#DIV/0!"}}]
[]
[]
[null,null,null,"wenn Beitrag mit EE",null,{"$f":"H117-0.2","v":{"$error":"#DIV/0!"}},"Beitragssatz ohne Elementar"]
[]
[null,null,null,"wenn Beitrag ohne EE",null,{"$f":"H117+0.2","v":{"$error":"#DIV/0!"}},"Beitragssatz mit Elementar"]